{"text_format":"1","workbook":"xlsx","n_sheets":53,"sheets":["Status Sheet","COUNTRYWIDE","AL","AZ","AK","AR","CA","CO","CT","DE","DC","FL","GA","HI","ID","IL","IN","IA","KS","KY","LA","MA","MD","ME","MI","MN","MO","MS","MT","NE","NV","NH","NJ","NM","NY","NC","ND","OH","OK","OR","PA","RI","SC","SD","TN","TX","UT","VT","VA","WA","WV","WI","WY"],"not_rendered":{"charts":0,"images":0,"macros":1,"external_links":0,"defined_names":53,"comments":0,"pivot_tables":0},"unopened":[],"bounds":{"document_bytes":16777216,"sheet_cells":100000,"rows_first":2000,"rows_last":500,"rows_between":2000,"halvings":0,"cell_chars":16384,"cell_head_chars":4096},"cells_cut":0,"cells_raw":0,"read":"whole","date_system":"1900"}

{"sheet":"Status Sheet","index":0,"n_rows":58,"n_cols":13,"rows_kept":58,"cut":false,"hidden":false,"merged":[[57,0,57,2],[53,0,53,1],[0,3,0,5],[0,6,0,8],[0,9,0,11],[54,0,54,2],[55,0,55,2],[56,0,56,2]]}
["2023-07-01",null,null,"AIG-20-CA-09",null,null,"AIG-20-GL-05",null,null,"AIG-20-CP-05"]
["STATE","RATING PLAN","MODIFICATION FACTOR","STATUS","APPROVAL DATE","EFFECTIVE DATE","STATUS","APPROVAL DATE","EFF DATE","STATUS","APPROVAL DATE","EFFECTIVE DATE","ADDITIONAL COMMENTS"]
["Alabama","ISO","+-25%","NF",null,null,"NF",null,null,"NF"]
["Alaska","ISO","+-25%","NF",null,null,"NF",null,null,"NF"]
["Arizona","ISO","+-25%","NF",null,null,"NF",null,null,"NF"]
["Arkansas","AIG","+-40%","E","2020-09-14","2021-01-01","E","2020-09-18","2021-01-01","E","2020-09-22","2021-01-01"]
["California","ISO","+-25%","NF",null,null,"NF",null,null,"NF"]
["Colorado","ISO","+-25%","NF",null,null,"NF",null,null,"NF"]
["Connecticut","ISO","+-25%","NF",null,null,"NF",null,null,"NF"]
["Delaware","ISO","+-25%","NF",null,null,"NF",null,null,"NF"]
["Dist. of Col.","ISO","+-25%","NF",null,null,"NF",null,null,"NF"]
["Florida","ISO","+-25%","NF",null,null,"NF",null,null,"NF"]
["Georgia","ISO","+-15%","NF",null,null,"NF",null,null,"NF"]
["Hawaii","N/A","N/A","NF",null,null,"NF",null,null,"NF"]
["Idaho","ISO","+-25%","NF",null,null,"NF",null,null,"NF"]
["Illinois","AIG","+-50%","E","2020-09-21","2021-01-01","E","2020-09-18","2021-01-01","E","2020-09-22","2021-01-01"]
["Indiana","AIG","+-50%","E","2020-09-22","2021-01-01","E","2020-09-18","2021-01-01","E","2020-09-22","2021-01-01"]
["Iowa","ISO","+-25%","NF",null,null,"NF",null,null,"NF"]
["Kansas","AIG","+-40%","E","2020-09-25","2021-01-01","E","2020-10-08","2021-01-01","E","2020-10-02","2021-01-01"]
["Kentucky","AIG","+-50%","E","2020-09-16","2021-01-01","E","2020-09-18","2021-01-01","E","2020-10-06","2021-01-01"]
["Louisiana","ISO","+-25%","NF",null,null,"NF",null,null,"NF"]
["Maine","AIG","+-40%","E","2020-09-15","2021-01-01","E","2020-09-17","2021-01-01","E","2020-09-22","2021-01-01"]
["Maryland","AIG","+-40%","E","2020-09-14","2021-01-01","E","2020-09-22","2021-01-01","E","2020-09-25","2021-01-01"]
["Massachusetts","ISO","+-25%","NF",null,null,"NF",null,null,"NF"]
["Michigan","ISO","+-25%","NF",null,null,"NF",null,null,"NF"]
["Minnesota","AIG","+-40%","E","2020-09-16","2021-01-01","E","2020-09-21","2021-01-01","E","2020-09-30","2021-01-01"]
["Mississippi","AIG","+-40%","E","2020-09-17","2021-01-01","E","2020-09-18","2021-01-01","E","2020-09-22","2021-01-01"]
["Missouri","ISO","+-25%","NF",null,null,"NF",null,null,"NF"]
["Montana","AIG","+-40%","E","2020-09-14","2021-01-01","E","2020-09-17","2021-01-01","E","2020-09-22","2021-01-01"]
["Nebraska","N/A","N/A","NF",null,null,"NF",null,null,"NF"]
["Nevada","ISO","+-25%","NF",null,null,"NF",null,null,"NF"]
["N. Hampshire","AIG","+-40%","E","2020-10-09","2021-01-01","E","2020-10-16","2021-01-01","E","2020-10-21","2021-01-01"]
["N. Jersey","ISO","+-25%","NF",null,null,"NF",null,null,"NF"]
["N. Mexico","ISO","+-25%","NF",null,null,"NF",null,null,"NF"]
["New York","ISO","+-15%","NF",null,null,"NF",null,null,"NF"]
["N. Carolina","AIG","+-50%","E","2020-10-26","2021-01-01","P",null,null,"P"]
["N. Dakota","ISO","+-25%","NF",null,null,"NF",null,null,"NF"]
["Ohio","ISO","+-25%","NF",null,null,"NF",null,null,"NF"]
["Oklahoma","AIG","+-40%","E","2020-09-24","2021-01-01","E","2020-09-24","2021-01-01","E","2020-09-30","2021-01-01"]
["Oregon","ISO","+-25%","NF",null,null,"NF",null,null,"NF"]
["Pennsylvania","AIG","+-40%","E","2020-09-15","2021-01-01","E","2020-09-20","2021-01-01","E","2020-09-22","2021-01-01"]
["Rhode Island","AIG","+-40%","E","2020-10-20","2021-01-01","E","2020-10-20","2021-01-01","E","2020-10-22","2021-01-01"]
["S. Carolina","AIG","-40% +25%","E","2020-09-15","2021-01-01","E","2020-09-18","2021-01-01","E","2020-09-22","2021-01-01"]
["S. Dakota","ISO","+-25%","NF",null,null,"NF",null,null,"NF"]
["Tennessee","AIG","+-50%","E","2020-09-15","2021-01-01","E","2020-09-18","2021-01-01","E","2020-09-25","2021-01-01"]
["Texas","AIG","+-40%","E","2020-12-02","2021-01-01","NF",null,null,"P"]
["Utah","ISO","+-25%","NF",null,null,"NF",null,null,"NF"]
["Vermont","AIG","+-50%","E","2020-09-16","2021-01-01","E","2020-09-22","2021-01-01","E","2020-09-24","2021-01-01"]
["Virginia","AIG","+-50%","E","2020-11-05","2021-01-01","P",null,null,"P"]
["Washington","ISO","+-25%","NF",null,null,"NF",null,null,"NF"]
["W. Virginia","AIG","+-40%","E","2020-09-16","2021-01-01","E","2020-09-18","2021-01-01","E","2020-09-23","2021-01-01"]
["Wisconsin","AIG","+-50%","E","2020-09-14","2021-01-01","E","2020-09-22","2021-01-01","E","2020-09-24","2021-01-01"]
["Wyoming","AIG","+-50%","E","2020-09-28","2021-01-01","E","2020-10-02","2021-01-01","E","2020-10-06","2021-01-01"]
["TOTALS"]
[null,null,null,null,null,null,22,null,null,{"$f":"51-J58","v":23}]
["NOTES",null,null,null,null,null,{"$f":"COUNTIF(G3:G53,\"P\")","v":2},null,null,{"$f":"COUNTIF(J3:J53,\"P\")","v":3}]
["E= EFFECTIVE",null,null,null,null,null,{"$f":"COUNTIF(G4:G54,\"E\")","v":20},null,null,{"$f":"COUNTIF(J3:J53, \"E\")","v":20}]
["NF= NOT FILED",null,null,null,null,null,29,null,null,{"$f":"COUNTIF(J2:J52,\"NF\")","v":28}]

{"sheet":"COUNTRYWIDE","index":1,"n_rows":11,"n_cols":1,"rows_kept":11,"cut":false,"hidden":true,"merged":[[38,8,41,8],[21,3,21,6],[26,8,29,8],[30,8,33,8],[46,1,46,7],[22,8,25,8],[34,8,37,8],[47,1,47,7],[48,1,48,7],[13,2,13,6],[14,3,14,5],[17,0,17,1],[45,1,45,7],[20,3,20,4],[20,5,20,6],[19,2,19,6],[16,0,16,1],[7,0,7,8],[6,0,6,8],[1,0,1,8],[2,0,2,8],[3,0,3,8],[5,0,5,8],[4,0,4,8]]}
[" "]
["As of January 1, 2021"]
["SCHEDULE RATING MODIFICATIONS - AUTOMOBILE"]
["RATING INFORMATION FORM"]
["ISO CW PLAN APPLIES IN ALL STATES WITH MAX CR OR DB 25% EXCEPT:"]
["AIG PROPRIETARY SCHEDULE RATING PLAN IN THE FOLLOWING STATES:"]
[" +/- 40%  Approved States:  AR, KS, ME, MD, MN, MS, MT, NH, OK, PA, RI,  WV\n             Pending States:  VA\n +/- 50%  Approved States: IL, IN, KY, TN, VT,  WI, WY\n             Pending States:  TX \n +40% / -25% -  Approved State:  South Carolina"]
["GEORGIA MAX CR OR DB IS 15%-- USE SEPARATE WORKSHEET"]
["NEW YORK CAP ON COMBINED MAX CR OR DB - USE SEPARATE WORKSHEET"]
["SCHEDULE RATING IS NOT ALLOWED IN: HAWAII, NEBRASKA "]
["ARIZONA - SEPARATE ISO PLAN APPLIES"]

{"sheet":"AL","index":2,"n_rows":48,"n_cols":7,"rows_kept":48,"cut":false,"hidden":false,"merged":[[14,1,14,5],[1,0,1,6],[2,0,2,6],[3,0,3,6],[4,0,4,6],[5,0,5,6],[7,1,7,5],[13,1,13,5],[8,1,8,5],[44,1,44,5],[45,1,45,5],[0,0,0,6],[6,0,6,6],[26,6,29,6],[30,6,33,6],[34,6,37,6],[39,0,39,1],[42,1,42,5],[43,1,43,5],[15,6,16,6],[16,2,16,3],[16,4,16,5],[17,2,17,5],[18,6,21,6],[22,6,25,6]]}
["ALABAMA"]
["ISO COUNTRYWIDE SCHEDULE RATING PLAN"]
["As of July 2023"]
["SCHEDULE RATING MODIFICATIONS - AUTOMOBILE"]
["RATING INFORMATION FORM"]
["A schedule rating modification may also be applied to the otherwise chargeable premium in accordance with the following table, subject to a maximum credit of -25% or debit of +25%, to reflect such characteristics of the risk as are not reflected in its experience."]
[]
["NAMED INSURED","EFFECTIVE DATE",null,null,null,null,"AIG COMPANY AND POLICY NUMBER"]
[]
[]
["INSURED LOCATIONS BY STATE:"]
[]
[]
["RISK ","MODIFICATIONS"]
["CHARACTERISTICS"]
[null,"RANGE","CR","DB","CR"," DB","REASONS"]
[null,"%","LIABILITY",null,"PHYS. DAM."]
[null,null,"% APPLIED"]
["MANAGEMENT"," 5% CR"]
[null,"5% DB"]
[]
[]
["EMPLOYEES","5% CR"]
[null,"5% DB"]
[]
[]
["EQUIPMENT","5% CR"]
[null,"10% DB"]
[]
[]
["SAFETY ORGANIZATION","10% CR"]
[null,"5% DB"]
[]
[]
["DISPERSION OR ","10% CR","N/A","N/A"]
["CONCENTRATION OF VALUES","10% DB"]
["(AUTO PD ONLY)"]
[]
[]
["TOTAL%  CR OR DB:",null,{"$f":"SUM(C19+C23+C27+C31)","v":0},{"$f":"SUM(D19+D23+D27+D31)","v":0},{"$f":"SUM(E19+E23+E27+E31+E35)","v":0},{"$f":"SUM(F19+F23+F27+F31+F35)","v":0}]
[]
[]
["UNDERWRITER SIGNATURE","DATE"]
[]
["NOTES"]
[]
["DO NOT USE NEGATIVE NUMBERS WHEN APPLYING A CREDIT"]
["SEE CLM LIABILITY AND PHYSICAL DAMAGE EXPERIENCE AND SCHEDULE RATING PLAN RULES FOR COMPLETE DESCRIPTION OF CHARACTERISTICS AND RULES FOR APPLICATION"]

{"sheet":"AZ","index":3,"n_rows":47,"n_cols":7,"rows_kept":47,"cut":false,"hidden":false,"merged":[[11,0,11,6],[12,1,12,5],[7,1,7,5],[17,6,20,6],[0,0,0,6],[6,0,6,6],[5,0,5,6],[1,0,1,6],[2,0,2,6],[3,0,3,6],[4,0,4,6],[8,1,8,5],[21,6,24,6],[25,6,28,6],[16,2,16,5],[13,1,13,5],[14,6,15,6],[15,2,15,3],[15,4,15,5],[44,1,44,5],[29,6,32,6],[33,6,36,6],[41,1,41,5],[42,1,42,5],[38,0,38,1],[43,1,43,5]]}
["ARIZONA"]
["ISO ARIZONA SCHEDULE RATING PLAN"]
["As of July 2023"]
["SCHEDULE RATING MODIFICATIONS - AUTOMOBILE"]
["RATING INFORMATION FORM"]
["A schedule rating modification may also be applied to the otherwise chargeable premium in accordance with the following table, subject to a maximum credit of -25% or debit of +25%, to reflect such characteristics of the risk as are not reflected in its experience."]
[]
["NAMED INSURED","EFFECTIVE DATE",null,null,null,null,"AIG COMPANY & POLICY NUMBER"]
[]
["INSURED LOCATIONS BY STATE:"]
[]
[]
["RISK ","MODIFICATIONS"]
["CHARACTERISTICS"]
[null,"RANGE","CR","DB","CR"," DB","REASONS"]
[null,"%","LIABILITY",null,"PHYS. DAM."]
[null,null,"% APPLIED"]
["MANAGEMENT"," 5% CR"]
[null,"5% DB"]
[]
[]
["EMPLOYEES","5% CR"]
[null,"5% DB"]
[]
[]
["EQUIPMENT","10% CR"]
[null,"10% DB"]
[]
[]
["SAFETY ORGANIZATION","5% CR"]
[null,"5% DB"]
[]
[]
["DISPERSION OR ","10% CR","N/A","N/A"]
["CONCENTRATION OF VALUES","10% DB"]
["(AUTO PD ONLY)"]
[]
[]
["TOTAL%  CR OR DB:",null,{"$f":"SUM(C18+C22+C26+C30)","v":0},{"$f":"SUM(D18+D22+D26+D30)","v":0},{"$f":"SUM(E18+E22+E26+E30+E34)","v":0},{"$f":"SUM(F18+F22+F26+F30+F34)","v":0}]
[]
[]
["UNDERWRITER SIGNATURE","DATE"]
[]
["NOTES"]
[]
["DO NOT USE NEGATIVE NUMBERS WHEN APPLYING A CREDIT"]
["SEE CLM LIABILITY AND PHYSICAL DAMAGE EXPERIENCE AND SCHEDULE RATING PLAN RULES FOR COMPLETE DESCRIPTION OF CHARACTERISTICS AND RULES FOR APPLICATION"]

{"sheet":"AK","index":4,"n_rows":48,"n_cols":7,"rows_kept":48,"cut":false,"hidden":false,"merged":[[14,1,14,5],[1,0,1,6],[2,0,2,6],[3,0,3,6],[4,0,4,6],[5,0,5,6],[7,1,7,5],[13,1,13,5],[8,1,8,5],[44,1,44,5],[45,1,45,5],[6,0,6,6],[0,0,0,6],[26,6,29,6],[30,6,33,6],[34,6,37,6],[39,0,39,1],[42,1,42,5],[43,1,43,5],[15,6,16,6],[16,2,16,3],[16,4,16,5],[17,2,17,5],[18,6,21,6],[22,6,25,6]]}
["ALASKA"]
["ISO COUNTRYWIDE SCHEDULE RATING PLAN"]
["As of JULY 2023"]
["SCHEDULE RATING MODIFICATIONS - AUTOMOBILE"]
["RATING INFORMATION FORM"]
["A schedule rating modification may also be applied to the otherwise chargeable premium in accordance with the following table, subject to a maximum credit of -25% or debit of +25%, to reflect such characteristics of the risk as are not reflected in its experience."]
[]
["NAMED INSURED","EFFECTIVE DATE",null,null,null,null,"AIG COMPANY AND POLICY NUMBER"]
[]
[]
["INSURED LOCATIONS BY STATE:"]
[]
[]
["RISK ","MODIFICATIONS"]
["CHARACTERISTICS"]
[null,"RANGE","CR","DB","CR"," DB","REASONS"]
[null,"%","LIABILITY",null,"PHYS. DAM."]
[null,null,"% APPLIED"]
["MANAGEMENT"," 5% CR"]
[null,"5% DB"]
[]
[]
["EMPLOYEES","5% CR"]
[null,"5% DB"]
[]
[]
["EQUIPMENT","5% CR"]
[null,"10% DB"]
[]
[]
["SAFETY ORGANIZATION","10% CR"]
[null,"5% DB"]
[]
[]
["DISPERSION OR ","10% CR","N/A","N/A"]
["CONCENTRATION OF VALUES","10% DB"]
["(AUTO PD ONLY)"]
[]
[]
["TOTAL%  CR OR DB:",null,{"$f":"SUM(C19+C23+C27+C31)","v":0},{"$f":"SUM(D19+D23+D27+D31)","v":0},{"$f":"SUM(E19+E23+E27+E31+E35)","v":0},{"$f":"SUM(F19+F23+F27+F31+F35)","v":0}]
[]
[]
["UNDERWRITER SIGNATURE","DATE"]
[]
["NOTES"]
[]
["DO NOT USE NEGATIVE NUMBERS WHEN APPLYING A CREDIT"]
["SEE CLM LIABILITY AND PHYSICAL DAMAGE EXPERIENCE AND SCHEDULE RATING PLAN RULES FOR COMPLETE DESCRIPTION OF CHARACTERISTICS AND RULES FOR APPLICATION"]

{"sheet":"AR","index":5,"n_rows":48,"n_cols":8,"rows_kept":48,"cut":false,"hidden":false,"merged":[[42,1,42,6],[43,1,43,6],[30,7,33,7],[34,7,37,7],[39,0,39,1],[0,0,0,7],[6,0,6,7],[18,7,21,7],[22,7,25,7],[26,7,29,7],[13,1,13,6],[14,1,14,6],[15,7,16,7],[7,1,7,6],[1,0,1,7],[2,0,2,7],[3,0,3,7],[4,0,4,7],[5,0,5,7],[8,1,8,6]]}
["ARKANSAS"]
["AIG PROPRIETARY SCHEDULE RATING PLAN"]
["As of July 2023"]
["SCHEDULE RATING MODIFICATIONS - AUTOMOBILE"]
["RATING INFORMATION FORM"]
["A schedule rating modification may also be applied to the otherwise chargeable premium in accordance with the following table, subject to a maximum credit of -40% or debit of +40%, to reflect such characteristics of the risk as are not reflected in its experience."]
[]
["NAMED INSURED","EFFECTIVE DATE",null,null,null,null,null,"AIG COMPANY AND POLICY NUMBER"]
[]
[]
["INSURED LOCATIONS BY STATE:"]
[]
[]
["RISK ","MODIFICATIONS"]
["CHARACTERISTICS"]
[null,"RANGE","CR","DB","RANGE","CR"," DB","REASONS"]
[null,null,"LIABILITY",null,null,"PHYS. DAM."]
[null,null,"% APPLIED",null,null,"% APPLIED"]
["MANAGEMENT","18% CR \n18% DB",null,null,"15% CR"]
[null,null,null,null,"15% DB"]
[]
[]
["EMPLOYEES","18% CR",null,null,"15% CR"]
[null,"18% DB",null,null,"15% DB"]
[]
[]
["EQUIPMENT","18% CR",null,null,"15% CR"]
[null,"18% DB",null,null,"15% DB"]
[]
[]
["SAFETY ORGANIZATION","21% CR",null,null,"15% CR"]
[null,"21% DB",null,null,"15% DB"]
[]
[]
["DISPERSION OR ","N/A","N/A","N/A","15% CR"]
["CONCENTRATION OF VALUES",null,null,null,"15% DB"]
["(AUTO PD ONLY)"]
[]
[]
["TOTAL%  CR OR DB:",null,{"$f":"SUM(C19+C23+C27+C31)","v":0},{"$f":"SUM(D19+D23+D27+D31)","v":0},null,{"$f":"SUM(F19+F23+F27+F31+F35)","v":0},{"$f":"SUM(G19+G23+G27+G31+G35)","v":0}]
[]
[]
["UNDERWRITER SIGNATURE","DATE"]
[]
["NOTES"]
[]
["DO NOT USE NEGATIVE NUMBERS WHEN APPLYING A CREDIT"]
["SEE CLM LIABILITY AND PHYSICAL DAMAGE EXPERIENCE AND SCHEDULE RATING PLAN RULES FOR COMPLETE DESCRIPTION OF CHARACTERISTICS AND RULES FOR APPLICATION"]

{"sheet":"CA","index":6,"n_rows":48,"n_cols":7,"rows_kept":48,"cut":false,"hidden":false,"merged":[[14,1,14,5],[1,0,1,6],[2,0,2,6],[3,0,3,6],[4,0,4,6],[5,0,5,6],[7,1,7,5],[13,1,13,5],[8,1,8,5],[44,1,44,5],[45,1,45,5],[0,0,0,6],[6,0,6,6],[26,6,29,6],[30,6,33,6],[34,6,37,6],[39,0,39,1],[42,1,42,5],[43,1,43,5],[15,6,16,6],[16,2,16,3],[16,4,16,5],[17,2,17,5],[18,6,21,6],[22,6,25,6]]}
["CALIFORNIA"]
["ISO COUNTRYWIDE SCHEDULE RATING PLAN"]
["As of July 2023"]
["SCHEDULE RATING MODIFICATIONS - AUTOMOBILE"]
["RATING INFORMATION FORM"]
["A schedule rating modification may also be applied to the otherwise chargeable premium in accordance with the following table, subject to a maximum credit of -25% or debit of +25%, to reflect such characteristics of the risk as are not reflected in its experience."]
[]
["NAMED INSURED","EFFECTIVE DATE",null,null,null,null,"AIG COMPANY AND POLICY NUMBER"]
[]
[]
["INSURED LOCATIONS BY STATE:"]
[]
[]
["RISK ","MODIFICATIONS"]
["CHARACTERISTICS"]
[null,"RANGE","CR","DB","CR"," DB","REASONS"]
[null,"%","LIABILITY",null,"PHYS. DAM."]
[null,null,"% APPLIED"]
["MANAGEMENT"," 5% CR"]
[null,"5% DB"]
[]
[]
["EMPLOYEES","5% CR"]
[null,"5% DB"]
[]
[]
["EQUIPMENT","5% CR"]
[null,"10% DB"]
[]
[]
["SAFETY ORGANIZATION","10% CR"]
[null,"5% DB"]
[]
[]
["DISPERSION OR ","10% CR","N/A","N/A"]
["CONCENTRATION OF VALUES","10% DB"]
["(AUTO PD ONLY)"]
[]
[]
["TOTAL%  CR OR DB:",null,{"$f":"SUM(C19+C23+C27+C31)","v":0},{"$f":"SUM(D19+D23+D27+D31)","v":0},{"$f":"SUM(E19+E23+E27+E31+E35)","v":0},{"$f":"SUM(F19+F23+F27+F31+F35)","v":0}]
[]
[]
["UNDERWRITER SIGNATURE","DATE"]
[]
["NOTES"]
[]
["DO NOT USE NEGATIVE NUMBERS WHEN APPLYING A CREDIT"]
["SEE CLM LIABILITY AND PHYSICAL DAMAGE EXPERIENCE AND SCHEDULE RATING PLAN RULES FOR COMPLETE DESCRIPTION OF CHARACTERISTICS AND RULES FOR APPLICATION"]

{"sheet":"CO","index":7,"n_rows":47,"n_cols":7,"rows_kept":47,"cut":false,"hidden":false,"merged":[[14,1,14,5],[1,0,1,6],[2,0,2,6],[3,0,3,6],[4,0,4,6],[5,0,5,6],[7,1,7,5],[13,1,13,5],[8,1,8,5],[43,1,43,5],[44,1,44,5],[0,0,0,6],[6,0,6,6],[26,6,29,6],[30,6,33,6],[34,6,37,6],[38,0,38,1],[41,1,41,5],[42,1,42,5],[15,6,16,6],[16,2,16,3],[16,4,16,5],[17,2,17,5],[18,6,21,6],[22,6,25,6]]}
["COLORADO"]
["ISO COUNTRYWIDE SCHEDULE RATING PLAN"]
["As of JULY 2023"]
["SCHEDULE RATING MODIFICATIONS - AUTOMOBILE"]
["RATING INFORMATION FORM"]
["A schedule rating modification may also be applied to the otherwise chargeable premium in accordance with the following table, subject to a maximum credit of -25% or debit of +25%, to reflect such characteristics of the risk as are not reflected in its experience."]
[]
["NAMED INSURED","EFFECTIVE DATE",null,null,null,null,"AIG COMPANY AND POLICY NUMBER"]
[]
[]
["INSURED LOCATIONS BY STATE:"]
[]
[]
["RISK ","MODIFICATIONS"]
["CHARACTERISTICS"]
[null,"RANGE","CR","DB","CR"," DB","REASONS"]
[null,"%","LIABILITY",null,"PHYS. DAM."]
[null,null,"% APPLIED"]
["MANAGEMENT"," 5% CR"]
[null,"5% DB"]
[]
[]
["EMPLOYEES","5% CR"]
[null,"5% DB"]
[]
[]
["EQUIPMENT","5% CR"]
[null,"10% DB"]
[]
[]
["SAFETY ORGANIZATION","10% CR"]
[null,"5% DB"]
[]
[]
["DISPERSION OR ","10% CR","N/A","N/A"]
["CONCENTRATION OF VALUES","10% DB"]
["(AUTO PD ONLY)"]
[]
["TOTAL%  CR OR DB:",null,{"$f":"SUM(C19+C23+C27+C31)","v":0},{"$f":"SUM(D19+D23+D27+D31)","v":0},{"$f":"SUM(E19+E23+E27+E31+E35)","v":0},{"$f":"SUM(F19+F23+F27+F31+F35)","v":0}]
[]
[]
["UNDERWRITER SIGNATURE","DATE"]
[]
["NOTES"]
[]
["DO NOT USE NEGATIVE NUMBERS WHEN APPLYING A CREDIT"]
["SEE CLM LIABILITY AND PHYSICAL DAMAGE EXPERIENCE AND SCHEDULE RATING PLAN RULES FOR COMPLETE DESCRIPTION OF CHARACTERISTICS AND RULES FOR APPLICATION"]

{"sheet":"CT","index":8,"n_rows":48,"n_cols":7,"rows_kept":48,"cut":false,"hidden":false,"merged":[[14,1,14,5],[1,0,1,6],[2,0,2,6],[3,0,3,6],[4,0,4,6],[5,0,5,6],[7,1,7,5],[13,1,13,5],[8,1,8,5],[44,1,44,5],[45,1,45,5],[0,0,0,6],[6,0,6,6],[26,6,29,6],[30,6,33,6],[34,6,37,6],[39,0,39,1],[42,1,42,5],[43,1,43,5],[15,6,16,6],[16,2,16,3],[16,4,16,5],[17,2,17,5],[18,6,21,6],[22,6,25,6]]}
["CONNECTICUT"]
["ISO COUNTRYWIDE SCHEDULE RATING PLAN"]
["As of July 2023"]
["SCHEDULE RATING MODIFICATIONS - AUTOMOBILE"]
["RATING INFORMATION FORM"]
["A schedule rating modification may also be applied to the otherwise chargeable premium in accordance with the following table, subject to a maximum credit of -25% or debit of +25%, to reflect such characteristics of the risk as are not reflected in its experience."]
[]
["NAMED INSURED","EFFECTIVE DATE",null,null,null,null,"AIG COMPANY AND POLICY NUMBER"]
[]
[]
["INSURED LOCATIONS BY STATE:"]
[]
[]
["RISK ","MODIFICATIONS"]
["CHARACTERISTICS"]
[null,"RANGE","CR","DB","CR"," DB","REASONS"]
[null,"%","LIABILITY",null,"PHYS. DAM."]
[null,null,"% APPLIED"]
["MANAGEMENT"," 5% CR"]
[null,"5% DB"]
[]
[]
["EMPLOYEES","5% CR"]
[null,"5% DB"]
[]
[]
["EQUIPMENT","5% CR"]
[null,"10% DB"]
[]
[]
["SAFETY ORGANIZATION","10% CR"]
[null,"5% DB"]
[]
[]
["DISPERSION OR ","10% CR","N/A","N/A"]
["CONCENTRATION OF VALUES","10% DB"]
["(AUTO PD ONLY)"]
[]
[]
["TOTAL%  CR OR DB:",null,{"$f":"SUM(C19+C23+C27+C31)","v":0},{"$f":"SUM(D19+D23+D27+D31)","v":0},{"$f":"SUM(E19+E23+E27+E31+E35)","v":0},{"$f":"SUM(F19+F23+F27+F31+F35)","v":0}]
[]
[]
["UNDERWRITER SIGNATURE","DATE"]
[]
["NOTES"]
[]
["DO NOT USE NEGATIVE NUMBERS WHEN APPLYING A CREDIT"]
["SEE CLM LIABILITY AND PHYSICAL DAMAGE EXPERIENCE AND SCHEDULE RATING PLAN RULES FOR COMPLETE DESCRIPTION OF CHARACTERISTICS AND RULES FOR APPLICATION"]

{"sheet":"DE","index":9,"n_rows":47,"n_cols":7,"rows_kept":47,"cut":false,"hidden":false,"merged":[[26,6,29,6],[30,6,33,6],[34,6,37,6],[13,1,13,5],[14,1,14,5],[15,6,16,6],[16,2,16,3],[16,4,16,5],[0,0,0,6],[6,0,6,6],[17,2,17,5],[18,6,21,6],[22,6,25,6],[1,0,1,6],[2,0,2,6],[3,0,3,6],[4,0,4,6],[5,0,5,6],[7,1,7,5],[8,1,8,5],[38,0,38,1],[41,1,41,5],[42,1,42,5],[43,1,43,5],[44,1,44,5]]}
["DELAWARE"]
["ISO COUNTRYWIDE SCHEDULE RATING PLAN"]
["As of JULY 2023"]
["SCHEDULE RATING MODIFICATIONS - AUTOMOBILE"]
["RATING INFORMATION FORM"]
["A schedule rating modification may also be applied to the otherwise chargeable premium in accordance with the following table, subject to a maximum credit of -25% or debit of +25%, to reflect such characteristics of the risk as are not reflected in its experience."]
[]
["NAMED INSURED","EFFECTIVE DATE",null,null,null,null,"AIG COMPANY AND POLICY NUMBER"]
[]
[]
["INSURED LOCATIONS BY STATE:"]
[]
[]
["RISK ","MODIFICATIONS"]
["CHARACTERISTICS"]
[null,"RANGE","CR","DB","CR"," DB","REASONS"]
[null,"%","LIABILITY",null,"PHYS. DAM."]
[null,null,"% APPLIED"]
["MANAGEMENT"," 5% CR"]
[null,"5% DB"]
[]
[]
["EMPLOYEES","5% CR"]
[null,"5% DB"]
[]
[]
["EQUIPMENT","5% CR"]
[null,"10% DB"]
[]
[]
["SAFETY ORGANIZATION","10% CR"]
[null,"5% DB"]
[]
[]
["DISPERSION OR ","10% CR","N/A","N/A"]
["CONCENTRATION OF VALUES","10% DB"]
["(AUTO PD ONLY)"]
[]
["TOTAL%  CR OR DB:",null,{"$f":"SUM(C19+C23+C27+C31)","v":0},{"$f":"SUM(D19+D23+D27+D31)","v":0},{"$f":"SUM(E19+E23+E27+E31+E35)","v":0},{"$f":"SUM(F19+F23+F27+F31+F35)","v":0}]
[]
[]
["UNDERWRITER SIGNATURE","DATE"]
[]
["NOTES"]
[]
["DO NOT USE NEGATIVE NUMBERS WHEN APPLYING A CREDIT"]
["SEE CLM LIABILITY AND PHYSICAL DAMAGE EXPERIENCE AND SCHEDULE RATING PLAN RULES FOR COMPLETE DESCRIPTION OF CHARACTERISTICS AND RULES FOR APPLICATION"]

{"sheet":"DC","index":10,"n_rows":48,"n_cols":7,"rows_kept":48,"cut":false,"hidden":false,"merged":[[13,1,13,5],[14,1,14,5],[8,1,8,5],[5,0,5,6],[0,0,0,6],[1,0,1,6],[2,0,2,6],[3,0,3,6],[4,0,4,6],[44,1,44,5],[45,1,45,5],[6,0,6,6],[26,6,29,6],[30,6,33,6],[34,6,37,6],[39,0,39,1],[42,1,42,5],[43,1,43,5],[15,6,16,6],[16,2,16,3],[16,4,16,5],[17,2,17,5],[18,6,21,6],[22,6,25,6],[7,1,7,5]]}
["DISTRICT OF COLUMBIA"]
["ISO COUNTRYWIDE SCHEDULE RATING PLAN"]
["As of JULY 2023"]
["SCHEDULE RATING MODIFICATIONS - AUTOMOBILE"]
["RATING INFORMATION FORM"]
["A schedule rating modification may also be applied to the otherwise chargeable premium in accordance with the following table, subject to a maximum credit of -25% or debit of +25%, to reflect such characteristics of the risk as are not reflected in its experience."]
[]
["NAMED INSURED","EFFECTIVE DATE",null,null,null,null,"AIG COMPANY AND POLICY NUMBER"]
[]
[]
["INSURED LOCATIONS BY STATE:"]
[]
[]
["RISK ","MODIFICATIONS"]
["CHARACTERISTICS"]
[null,"RANGE","CR","DB","CR"," DB","REASONS"]
[null,"%","LIABILITY",null,"PHYS. DAM."]
[null,null,"% APPLIED"]
["MANAGEMENT"," 5% CR"]
[null,"5% DB"]
[]
[]
["EMPLOYEES","5% CR"]
[null,"5% DB"]
[]
[]
["EQUIPMENT","5% CR"]
[null,"10% DB"]
[]
[]
["SAFETY ORGANIZATION","10% CR"]
[null,"5% DB"]
[]
[]
["DISPERSION OR ","10% CR","N/A","N/A"]
["CONCENTRATION OF VALUES","10% DB"]
["(AUTO PD ONLY)"]
[]
[]
["TOTAL%  CR OR DB:",null,{"$f":"SUM(C19+C23+C27+C31)","v":0},{"$f":"SUM(D19+D23+D27+D31)","v":0},{"$f":"SUM(E19+E23+E27+E31+E35)","v":0},{"$f":"SUM(F19+F23+F27+F31+F35)","v":0}]
[]
[]
["UNDERWRITER SIGNATURE","DATE"]
[]
["NOTES"]
[]
["DO NOT USE NEGATIVE NUMBERS WHEN APPLYING A CREDIT"]
["SEE CLM LIABILITY AND PHYSICAL DAMAGE EXPERIENCE AND SCHEDULE RATING PLAN RULES FOR COMPLETE DESCRIPTION OF CHARACTERISTICS AND RULES FOR APPLICATION"]

{"sheet":"FL","index":11,"n_rows":48,"n_cols":7,"rows_kept":48,"cut":false,"hidden":false,"merged":[[13,1,13,5],[14,1,14,5],[8,1,8,5],[5,0,5,6],[0,0,0,6],[1,0,1,6],[2,0,2,6],[3,0,3,6],[4,0,4,6],[44,1,44,5],[45,1,45,5],[6,0,6,6],[26,6,29,6],[30,6,33,6],[34,6,37,6],[39,0,39,1],[42,1,42,5],[43,1,43,5],[15,6,16,6],[16,2,16,3],[16,4,16,5],[17,2,17,5],[18,6,21,6],[22,6,25,6],[7,1,7,5]]}
["FLORIDA"]
["ISO COUNTRYWIDE SCHEDULE RATING PLAN"]
["As of July 2023"]
["SCHEDULE RATING MODIFICATIONS - AUTOMOBILE"]
["RATING INFORMATION FORM"]
["A schedule rating modification may also be applied to the otherwise chargeable premium in accordance with the following table, subject to a maximum credit of -25% or debit of +25%, to reflect such characteristics of the risk as are not reflected in its experience."]
[]
["NAMED INSURED","EFFECTIVE DATE",null,null,null,null,"AIG COMPANY AND POLICY NUMBER"]
[]
[]
["INSURED LOCATIONS BY STATE:"]
[]
[]
["RISK ","MODIFICATIONS"]
["CHARACTERISTICS"]
[null,"RANGE","CR","DB","CR"," DB","REASONS"]
[null,"%","LIABILITY",null,"PHYS. DAM."]
[null,null,"% APPLIED"]
["MANAGEMENT"," 5% CR"]
[null,"5% DB"]
[]
[]
["EMPLOYEES","5% CR"]
[null,"5% DB"]
[]
[]
["EQUIPMENT","5% CR"]
[null,"10% DB"]
[]
[]
["SAFETY ORGANIZATION","10% CR"]
[null,"5% DB"]
[]
[]
["DISPERSION OR ","10% CR","N/A","N/A"]
["CONCENTRATION OF VALUES","10% DB"]
["(AUTO PD ONLY)"]
[]
[]
["TOTAL%  CR OR DB:",null,{"$f":"SUM(C19+C23+C27+C31)","v":0},{"$f":"SUM(D19+D23+D27+D31)","v":0},{"$f":"SUM(E19+E23+E27+E31+E35)","v":0},{"$f":"SUM(F19+F23+F27+F31+F35)","v":0}]
[]
[]
["UNDERWRITER SIGNATURE","DATE"]
[]
["NOTES"]
[]
["DO NOT USE NEGATIVE NUMBERS WHEN APPLYING A CREDIT"]
["SEE CLM LIABILITY AND PHYSICAL DAMAGE EXPERIENCE AND SCHEDULE RATING PLAN RULES FOR COMPLETE DESCRIPTION OF CHARACTERISTICS AND RULES FOR APPLICATION"]

{"sheet":"GA","index":12,"n_rows":48,"n_cols":7,"rows_kept":48,"cut":false,"hidden":false,"merged":[[44,1,44,5],[45,1,45,5],[34,6,37,6],[13,1,13,5],[14,1,14,5],[15,6,16,6],[16,2,16,3],[16,4,16,5],[17,2,17,5],[18,6,21,6],[22,6,25,6],[26,6,29,6],[30,6,33,6],[0,0,0,6],[6,0,6,6],[39,0,39,1],[42,1,42,5],[43,1,43,5],[7,1,7,5],[1,0,1,6],[2,0,2,6],[3,0,3,6],[4,0,4,6],[5,0,5,6],[8,1,8,5]]}
["GEORGIA "]
["ISO-GEORGIA SCHEDULE RATING PLAN"]
["As of July 2023"]
["SCHEDULE RATING MODIFICATIONS - AUTOMOBILE"]
["RATING INFORMATION FORM"]
["A schedule rating modification may also be applied to the otherwise chargeable premium in accordance with the following table, subject to a maximum credit of -15% or debit of +15%, to reflect such characteristics of the risk as are not reflected in its experience. "]
[]
["NAMED INSURED","EFFECTIVE DATE",null,null,null,null,"AIG COMPANY AND POLICY NUMBER"]
[]
[]
["INSURED LOCATIONS BY STATE:"]
[]
[]
["RISK ","MODIFICATIONS"]
["CHARACTERISTICS"]
[null,"RANGE","CR","DB","CR"," DB","REASONS"]
[null,"%","LIABILITY",null,"PHYS. DAM."]
[null,null,"% APPLIED"]
["MANAGEMENT"," 5% CR"]
[null,"5% DB"]
[]
[]
["EMPLOYEES","5% CR"]
[null,"5% DB"]
[]
[]
["EQUIPMENT","5% CR"]
[null,"10% DB"]
[]
[]
["SAFETY ORGANIZATION","10% CR"]
[null,"5% DB"]
[]
[]
["DISPERSION OR ","10% CR","N/A","N/A"]
["CONCENTRATION OF VALUES","10% DB"]
["(AUTO PD ONLY)"]
[]
[]
["TOTAL%  CR OR DB:",null,{"$f":"SUM(C19+C23+C27+C31)","v":0},{"$f":"SUM(D19+D23+D27+D31)","v":0},{"$f":"SUM(E19+E23+E27+E31)","v":0},{"$f":"SUM(F19+F23+F27+F31)","v":0}]
[]
[]
["UNDERWRITER SIGNATURE","DATE"]
[]
["NOTES"]
[]
["DO NOT USE NEGATIVE NUMBERS WHEN APPLYING A CREDIT"]
["SEE CLM LIABILITY AND PHYSICAL DAMAGE EXPERIENCE AND SCHEDULE RATING PLAN RULES FOR COMPLETE DESCRIPTION OF CHARACTERISTICS AND RULES FOR APPLICATION"]

{"sheet":"HI","index":13,"n_rows":2,"n_cols":1,"rows_kept":2,"cut":false,"hidden":false,"merged":[[6,0,6,8],[0,0,0,8],[1,0,1,8],[2,0,2,8],[3,0,3,8],[4,0,4,8],[5,0,5,8],[26,0,26,8],[7,0,7,8],[8,0,8,8],[9,0,9,8],[10,0,10,8],[11,0,11,8],[12,0,12,8],[13,0,13,8],[14,0,14,8],[15,0,15,8],[16,0,16,8],[17,0,17,8],[18,0,18,8],[19,0,19,8],[20,0,20,8],[21,0,21,8],[22,0,22,8],[23,0,23,8],[24,0,24,8],[25,0,25,8],[38,0,38,8],[27,0,27,8],[28,0,28,8],[29,0,29,8],[30,0,30,8],[31,0,31,8],[32,0,32,8],[33,0,33,8],[34,0,34,8],[35,0,35,8],[36,0,36,8],[37,0,37,8],[45,0,45,8],[39,0,39,8],[40,0,40,8],[41,0,41,8],[42,0,42,8],[43,0,43,8],[44,0,44,8]]}
["HAWAII"]
["SCHEDULE RATING IS NOT ALLOWED IN HAWAII "]

{"sheet":"ID","index":14,"n_rows":48,"n_cols":7,"rows_kept":48,"cut":false,"hidden":false,"merged":[[5,0,5,6],[0,0,0,6],[1,0,1,6],[2,0,2,6],[3,0,3,6],[4,0,4,6],[18,6,21,6],[6,0,6,6],[7,1,7,5],[13,1,13,5],[14,1,14,5],[15,6,16,6],[16,2,16,3],[16,4,16,5],[17,2,17,5],[8,1,8,5],[43,1,43,5],[44,1,44,5],[45,1,45,5],[22,6,25,6],[26,6,29,6],[30,6,33,6],[34,6,37,6],[39,0,39,1],[42,1,42,5]]}
["IDAHO"]
["ISO COUNTRYWIDE SCHEDULE RATING PLAN"]
["As of JULY 2023"]
["SCHEDULE RATING MODIFICATIONS - AUTOMOBILE"]
["RATING INFORMATION FORM"]
["A schedule rating modification may also be applied to the otherwise chargeable premium in accordance with the following table, subject to a maximum credit of -25% or debit of +25%, to reflect such characteristics of the risk as are not reflected in its experience."]
[]
["NAMED INSURED","EFFECTIVE DATE",null,null,null,null,"AIG COMPANY AND POLICY NUMBER"]
[]
[]
["INSURED LOCATIONS BY STATE:"]
[]
[]
["RISK ","MODIFICATIONS"]
["CHARACTERISTICS"]
[null,"RANGE","CR","DB","CR"," DB","REASONS"]
[null,"%","LIABILITY",null,"PHYS. DAM."]
[null,null,"% APPLIED"]
["MANAGEMENT"," 5% CR"]
[null,"5% DB"]
[]
[]
["EMPLOYEES","5% CR"]
[null,"5% DB"]
[]
[]
["EQUIPMENT","5% CR"]
[null,"10% DB"]
[]
[]
["SAFETY ORGANIZATION","10% CR"]
[null,"5% DB"]
[]
[]
["DISPERSION OR ","10% CR","N/A","N/A"]
["CONCENTRATION OF VALUES","10% DB"]
["(AUTO PD ONLY)"]
[]
[]
["TOTAL%  CR OR DB:",null,{"$f":"SUM(C19+C23+C27+C31)","v":0},{"$f":"SUM(D19+D23+D27+D31)","v":0},{"$f":"SUM(E19+E23+E27+E31+E35)","v":0},{"$f":"SUM(F19+F23+F27+F31+F35)","v":0}]
[]
[]
["UNDERWRITER SIGNATURE","DATE"]
[]
["NOTES"]
[]
["DO NOT USE NEGATIVE NUMBERS WHEN APPLYING A CREDIT"]
["SEE CLM LIABILITY AND PHYSICAL DAMAGE EXPERIENCE AND SCHEDULE RATING PLAN RULES FOR COMPLETE DESCRIPTION OF CHARACTERISTICS AND RULES FOR APPLICATION"]

{"sheet":"IL","index":15,"n_rows":48,"n_cols":8,"rows_kept":48,"cut":false,"hidden":false,"merged":[[15,7,16,7],[1,0,1,7],[2,0,2,7],[3,0,3,7],[4,0,4,7],[5,0,5,7],[7,1,7,6],[6,0,6,7],[18,7,21,7],[22,7,25,7],[26,7,29,7],[30,7,33,7],[34,7,37,7],[0,0,0,6],[42,1,42,6],[43,1,43,6],[44,1,44,6],[45,1,45,6],[39,0,39,1],[13,1,13,6],[14,1,14,6],[8,1,8,6]]}
["ILLINOIS"]
["AIG PROPRIETARY SCHEDULE RATING PLAN"]
["As of July 2023"]
["SCHEDULE RATING MODIFICATIONS - AUTOMOBILE"]
["RATING INFORMATION FORM"]
["A schedule rating modification may also be applied to the otherwise chargeable premium in accordance with the following table, subject to a maximum credit of -50% or debit of +50%, to reflect such characteristics of the risk as are not reflected in its experience."]
[]
["NAMED INSURED","EFFECTIVE DATE",null,null,null,null,null,"AIG COMPANY AND POLICY NUMBER"]
[]
[]
["INSURED LOCATIONS BY STATE:"]
[]
[]
["RISK ","MODIFICATIONS"]
["CHARACTERISTICS"]
[null,"RANGE","CR","DB","RANGE","CR"," DB","REASONS"]
[null,null,"LIABILITY",null,null,"PHYS. DAM."]
[null,null,"% APPLIED",null,null,"% APPLIED"]
["MANAGEMENT","18% CR",null,null,"15% CR"]
[null,"18% DB",null,null,"15% DB"]
[]
[]
["EMPLOYEES","18% CR",null,null,"15% CR"]
[null,"18% DB",null,null,"15% DB"]
[]
[]
["EQUIPMENT","18% CR",null,null,"15% CR"]
[null,"18% DB",null,null,"15% DB"]
[]
[]
["SAFETY ORGANIZATION","21% CR",null,null,"15% CR"]
[null,"21% DB",null,null,"15% DB"]
[]
[]
["DISPERSION OR ","N/A","N/A","N/A","15% CR"]
["CONCENTRATION OF VALUES",null,null,null,"15% DB"]
["(AUTO PD ONLY)"]
[]
[]
["TOTAL%  CR OR DB:",null,{"$f":"SUM(C19+C23+C27+C31)","v":0},{"$f":"SUM(D19+D23+D27+D31)","v":0},null,{"$f":"SUM(F19+F23+F27+F31+F35)","v":0},{"$f":"SUM(G19+G23+G27+G31+G35)","v":0}]
[]
[]
["UNDERWRITER SIGNATURE","DATE"]
[]
["NOTES"]
[]
["DO NOT USE NEGATIVE NUMBERS WHEN APPLYING A CREDIT"]
["SEE CLM LIABILITY AND PHYSICAL DAMAGE EXPERIENCE AND SCHEDULE RATING PLAN RULES FOR COMPLETE DESCRIPTION OF CHARACTERISTICS AND RULES FOR APPLICATION"]

{"sheet":"IN","index":16,"n_rows":48,"n_cols":8,"rows_kept":48,"cut":false,"hidden":false,"merged":[[0,0,0,7],[13,1,13,6],[1,0,1,7],[2,0,2,7],[3,0,3,7],[4,0,4,7],[5,0,5,7],[6,0,6,7],[7,1,7,6],[8,1,8,6],[45,1,45,6],[14,1,14,6],[15,7,16,7],[18,7,21,7],[22,7,25,7],[26,7,29,7],[30,7,33,7],[34,7,37,7],[39,0,39,1],[42,1,42,6],[43,1,43,6],[44,1,44,6]]}
["INDIANA"]
["AIG PROPRIETARY SCHEDULE RATING PLAN"]
["As of July 2023"]
["SCHEDULE RATING MODIFICATIONS - AUTOMOBILE"]
["RATING INFORMATION FORM"]
["A schedule rating modification may also be applied to the otherwise chargeable premium in accordance with the following table, subject to a maximum credit of -50% or debit of +50%, to reflect such characteristics of the risk as are not reflected in its experience."]
[]
["NAMED INSURED","EFFECTIVE DATE",null,null,null,null,null,"AIG COMPANY AND POLICY NUMBER"]
[]
[]
["INSURED LOCATIONS BY STATE:"]
[]
[]
["RISK ","MODIFICATIONS"]
["CHARACTERISTICS"]
[null,"RANGE","CR","DB","RANGE","CR"," DB","REASONS"]
[null,null,"LIABILITY",null,null,"PHYS. DAM."]
[null,null,"% APPLIED",null,null,"% APPLIED"]
["MANAGEMENT","18% CR",null,null,"15% CR"]
[null,"18% DB",null,null,"15% DB"]
[]
[]
["EMPLOYEES","18% CR",null,null,"15% CR"]
[null,"18% DB",null,null,"15% DB"]
[]
[]
["EQUIPMENT","18% CR",null,null,"15% CR"]
[null,"18% DB",null,null,"15% DB"]
[]
[]
["SAFETY ORGANIZATION","21% CR",null,null,"15% CR"]
[null,"21% DB",null,null,"15% DB"]
[]
[]
["DISPERSION OR ","N/A","N/A","N/A","15% CR"]
["CONCENTRATION OF VALUES",null,null,null,"15% DB"]
["(AUTO PD ONLY)"]
[]
[]
["TOTAL%  CR OR DB:",null,{"$f":"SUM(C19+C23+C27+C31)","v":0},{"$f":"SUM(D19+D23+D27+D31)","v":0},null,{"$f":"SUM(F19+F23+F27+F31+F35)","v":0},{"$f":"SUM(G19+G23+G27+G31+G35)","v":0}]
[]
[]
["UNDERWRITER SIGNATURE","DATE"]
[]
["NOTES"]
[]
["DO NOT USE NEGATIVE NUMBERS WHEN APPLYING A CREDIT"]
["SEE CLM LIABILITY AND PHYSICAL DAMAGE EXPERIENCE AND SCHEDULE RATING PLAN RULES FOR COMPLETE DESCRIPTION OF CHARACTERISTICS AND RULES FOR APPLICATION"]

{"sheet":"IA","index":17,"n_rows":48,"n_cols":7,"rows_kept":48,"cut":false,"hidden":false,"merged":[[5,0,5,6],[0,0,0,6],[1,0,1,6],[2,0,2,6],[3,0,3,6],[4,0,4,6],[18,6,21,6],[6,0,6,6],[7,1,7,5],[13,1,13,5],[14,1,14,5],[15,6,16,6],[16,2,16,3],[16,4,16,5],[17,2,17,5],[8,1,8,5],[43,1,43,5],[44,1,44,5],[45,1,45,5],[22,6,25,6],[26,6,29,6],[30,6,33,6],[34,6,37,6],[39,0,39,1],[42,1,42,5]]}
["IOWA"]
["ISO COUNTRYWIDE SCHEDULE RATING PLAN"]
["As of July 2023"]
["SCHEDULE RATING MODIFICATIONS - AUTOMOBILE"]
["RATING INFORMATION FORM"]
["A schedule rating modification may also be applied to the otherwise chargeable premium in accordance with the following table, subject to a maximum credit of -25% or debit of +25%, to reflect such characteristics of the risk as are not reflected in its experience."]
[]
["NAMED INSURED","EFFECTIVE DATE",null,null,null,null,"AIG COMPANY AND POLICY NUMBER"]
[]
[]
["INSURED LOCATIONS BY STATE:"]
[]
[]
["RISK ","MODIFICATIONS"]
["CHARACTERISTICS"]
[null,"RANGE","CR","DB","CR"," DB","REASONS"]
[null,"%","LIABILITY",null,"PHYS. DAM."]
[null,null,"% APPLIED"]
["MANAGEMENT"," 5% CR"]
[null,"5% DB"]
[]
[]
["EMPLOYEES","5% CR"]
[null,"5% DB"]
[]
[]
["EQUIPMENT","5% CR"]
[null,"10% DB"]
[]
[]
["SAFETY ORGANIZATION","10% CR"]
[null,"5% DB"]
[]
[]
["DISPERSION OR ","10% CR","N/A","N/A"]
["CONCENTRATION OF VALUES","10% DB"]
["(AUTO PD ONLY)"]
[]
[]
["TOTAL%  CR OR DB:",null,{"$f":"SUM(C19+C23+C27+C31)","v":0},{"$f":"SUM(D19+D23+D27+D31)","v":0},{"$f":"SUM(E19+E23+E27+E31+E35)","v":0},{"$f":"SUM(F19+F23+F27+F31+F35)","v":0}]
[]
[]
["UNDERWRITER SIGNATURE","DATE"]
[]
["NOTES"]
[]
["DO NOT USE NEGATIVE NUMBERS WHEN APPLYING A CREDIT"]
["SEE CLM LIABILITY AND PHYSICAL DAMAGE EXPERIENCE AND SCHEDULE RATING PLAN RULES FOR COMPLETE DESCRIPTION OF CHARACTERISTICS AND RULES FOR APPLICATION"]

{"sheet":"KS","index":18,"n_rows":48,"n_cols":8,"rows_kept":48,"cut":false,"hidden":false,"merged":[[42,1,42,6],[43,1,43,6],[6,0,6,7],[34,7,37,7],[39,0,39,1],[0,0,0,7],[18,7,21,7],[22,7,25,7],[26,7,29,7],[30,7,33,7],[13,1,13,6],[14,1,14,6],[15,7,16,7],[8,1,8,6],[7,1,7,6],[1,0,1,7],[2,0,2,7],[3,0,3,7],[4,0,4,7],[5,0,5,7]]}
["KANSAS"]
["AIG PROPRIETARY SCHEDULE RATING PLAN"]
["As of July 2023"]
["SCHEDULE RATING MODIFICATIONS - AUTOMOBILE"]
["RATING INFORMATION FORM"]
["A schedule rating modification may also be applied to the otherwise chargeable premium in accordance with the following table, subject to a maximum credit of -40% or debit of +40%, to reflect such characteristics of the risk as are not reflected in its experience."]
[]
["NAMED INSURED","EFFECTIVE DATE",null,null,null,null,null,"AIG COMPANY AND POLICY NUMBER"]
[]
[]
["INSURED LOCATIONS BY STATE:"]
[]
[]
["RISK ","MODIFICATIONS"]
["CHARACTERISTICS"]
[null,"RANGE","CR","DB","RANGE","CR"," DB","REASONS"]
[null,null,"LIABILITY",null,null,"PHYS. DAM."]
[null,null,"% APPLIED",null,null,"% APPLIED"]
["MANAGEMENT","18% CR",null,null,"15% CR"]
[null,"18% DB",null,null,"15% DB"]
[]
[]
["EMPLOYEES","18% CR",null,null,"15% CR"]
[null,"18% DB",null,null,"15% DB"]
[]
[]
["EQUIPMENT","18% CR",null,null,"15% CR"]
[null,"18% DB",null,null,"15% DB"]
[]
[]
["SAFETY ORGANIZATION","21% CR",null,null,"15% CR"]
[null,"21% DB",null,null,"15% DB"]
[]
[]
["DISPERSION OR ","N/A","N/A","N/A","15% CR"]
["CONCENTRATION OF VALUES",null,null,null,"15% DB"]
["(AUTO PD ONLY)"]
[]
[]
["TOTAL%  CR OR DB:",null,{"$f":"SUM(C19+C23+C27+C31)","v":0},{"$f":"SUM(D19+D23+D27+D31)","v":0},null,{"$f":"SUM(F19+F23+F27+F31+F35)","v":0},{"$f":"SUM(G19+G23+G27+G31+G35)","v":0}]
[]
[]
["UNDERWRITER SIGNATURE","DATE"]
[]
["NOTES"]
[]
["DO NOT USE NEGATIVE NUMBERS WHEN APPLYING A CREDIT"]
["SEE CLM LIABILITY AND PHYSICAL DAMAGE EXPERIENCE AND SCHEDULE RATING PLAN RULES FOR COMPLETE DESCRIPTION OF CHARACTERISTICS AND RULES FOR APPLICATION"]

{"sheet":"KY","index":19,"n_rows":48,"n_cols":8,"rows_kept":48,"cut":false,"hidden":false,"merged":[[13,1,13,6],[0,0,0,6],[1,0,1,7],[2,0,2,7],[3,0,3,7],[4,0,4,7],[5,0,5,7],[6,0,6,7],[7,1,7,6],[8,1,8,6],[45,1,45,6],[14,1,14,6],[15,7,16,7],[18,7,21,7],[22,7,25,7],[26,7,29,7],[30,7,33,7],[34,7,37,7],[39,0,39,1],[42,1,42,6],[43,1,43,6],[44,1,44,6]]}
["KENTUCKY"]
["AIG PROPRIETARY SCHEDULE RATING PLAN"]
["As of July 2023"]
["SCHEDULE RATING MODIFICATIONS - AUTOMOBILE"]
["RATING INFORMATION FORM"]
["A schedule rating modification may also be applied to the otherwise chargeable premium in accordance with the following table, subject to a maximum credit of -50% or debit of +50%, to reflect such characteristics of the risk as are not reflected in its experience."]
[]
["NAMED INSURED","EFFECTIVE DATE",null,null,null,null,null,"AIG COMPANY AND POLICY NUMBER"]
[]
[]
["INSURED LOCATIONS BY STATE:"]
[]
[]
["RISK ","MODIFICATIONS"]
["CHARACTERISTICS"]
[null,"RANGE","CR","DB","RANGE","CR"," DB","REASONS"]
[null,null,"LIABILITY",null,null,"PHYS. DAM."]
[null,null,"% APPLIED",null,null,"% APPLIED"]
["MANAGEMENT","18% CR",null,null,"15% CR"]
[null,"18% DB",null,null,"15% DB"]
[]
[]
["EMPLOYEES","18% CR",null,null,"15% CR"]
[null,"18% DB",null,null,"15% DB"]
[]
[]
["EQUIPMENT","18% CR",null,null,"15% CR"]
[null,"18% DB",null,null,"15% DB"]
[]
[]
["SAFETY ORGANIZATION","21% CR",null,null,"15% CR"]
[null,"21% DB",null,null,"15% DB"]
[]
[]
["DISPERSION OR ","N/A","N/A","N/A","15% CR"]
["CONCENTRATION OF VALUES",null,null,null,"15% DB"]
["(AUTO PD ONLY)"]
[]
[]
["TOTAL%  CR OR DB:",null,{"$f":"SUM(C19+C23+C27+C31)","v":0},{"$f":"SUM(D19+D23+D27+D31)","v":0},null,{"$f":"SUM(F19+F23+F27+F31+F35)","v":0},{"$f":"SUM(G19+G23+G27+G31+G35)","v":0}]
[]
[]
["UNDERWRITER SIGNATURE","DATE"]
[]
["NOTES"]
[]
["DO NOT USE NEGATIVE NUMBERS WHEN APPLYING A CREDIT"]
["SEE CLM LIABILITY AND PHYSICAL DAMAGE EXPERIENCE AND SCHEDULE RATING PLAN RULES FOR COMPLETE DESCRIPTION OF CHARACTERISTICS AND RULES FOR APPLICATION"]

{"sheet":"LA","index":20,"n_rows":48,"n_cols":7,"rows_kept":48,"cut":false,"hidden":false,"merged":[[5,0,5,6],[0,0,0,6],[1,0,1,6],[2,0,2,6],[3,0,3,6],[4,0,4,6],[18,6,21,6],[6,0,6,6],[7,1,7,5],[13,1,13,5],[14,1,14,5],[15,6,16,6],[16,2,16,3],[16,4,16,5],[17,2,17,5],[8,1,8,5],[43,1,43,5],[44,1,44,5],[45,1,45,5],[22,6,25,6],[26,6,29,6],[30,6,33,6],[34,6,37,6],[39,0,39,1],[42,1,42,5]]}
["LOUISIANA"]
["ISO COUNTRYWIDE SCHEDULE RATING PLAN"]
["As of July 2023"]
["SCHEDULE RATING MODIFICATIONS - AUTOMOBILE"]
["RATING INFORMATION FORM"]
["A schedule rating modification may also be applied to the otherwise chargeable premium in accordance with the following table, subject to a maximum credit of -25% or debit of +25%, to reflect such characteristics of the risk as are not reflected in its experience."]
[]
["NAMED INSURED","EFFECTIVE DATE",null,null,null,null,"AIG COMPANY AND POLICY NUMBER"]
[]
[]
["INSURED LOCATIONS BY STATE:"]
[]
[]
["RISK ","MODIFICATIONS"]
["CHARACTERISTICS"]
[null,"RANGE","CR","DB","CR"," DB","REASONS"]
[null,"%","LIABILITY",null,"PHYS. DAM."]
[null,null,"% APPLIED"]
["MANAGEMENT"," 5% CR"]
[null,"5% DB"]
[]
[]
["EMPLOYEES","5% CR"]
[null,"5% DB"]
[]
[]
["EQUIPMENT","5% CR"]
[null,"10% DB"]
[]
[]
["SAFETY ORGANIZATION","10% CR"]
[null,"5% DB"]
[]
[]
["DISPERSION OR ","10% CR","N/A","N/A"]
["CONCENTRATION OF VALUES","10% DB"]
["(AUTO PD ONLY)"]
[]
[]
["TOTAL%  CR OR DB:",null,{"$f":"SUM(C19+C23+C27+C31)","v":0},{"$f":"SUM(D19+D23+D27+D31)","v":0},{"$f":"SUM(E19+E23+E27+E31+E35)","v":0},{"$f":"SUM(F19+F23+F27+F31+F35)","v":0}]
[]
[]
["UNDERWRITER SIGNATURE","DATE"]
[]
["NOTES"]
[]
["DO NOT USE NEGATIVE NUMBERS WHEN APPLYING A CREDIT"]
["SEE CLM LIABILITY AND PHYSICAL DAMAGE EXPERIENCE AND SCHEDULE RATING PLAN RULES FOR COMPLETE DESCRIPTION OF CHARACTERISTICS AND RULES FOR APPLICATION"]

{"sheet":"MA","index":21,"n_rows":48,"n_cols":7,"rows_kept":48,"cut":false,"hidden":false,"merged":[[5,0,5,6],[0,0,0,6],[1,0,1,6],[2,0,2,6],[3,0,3,6],[4,0,4,6],[18,6,21,6],[6,0,6,6],[7,1,7,5],[13,1,13,5],[14,1,14,5],[15,6,16,6],[16,2,16,3],[16,4,16,5],[17,2,17,5],[8,1,8,5],[43,1,43,5],[44,1,44,5],[45,1,45,5],[22,6,25,6],[26,6,29,6],[30,6,33,6],[34,6,37,6],[39,0,39,1],[42,1,42,5]]}
["MASSACHUSETTS"]
["ISO COUNTRYWIDE SCHEDULE RATING PLAN"]
["As of July 2023"]
["SCHEDULE RATING MODIFICATIONS - AUTOMOBILE"]
["RATING INFORMATION FORM"]
["A schedule rating modification may also be applied to the otherwise chargeable premium in accordance with the following table, subject to a maximum credit of -25% or debit of +25%, to reflect such characteristics of the risk as are not reflected in its experience."]
[]
["NAMED INSURED","EFFECTIVE DATE",null,null,null,null,"AIG COMPANY AND POLICY NUMBER"]
[]
[]
["INSURED LOCATIONS BY STATE:"]
[]
[]
["RISK ","MODIFICATIONS"]
["CHARACTERISTICS"]
[null,"RANGE","CR","DB","CR"," DB","REASONS"]
[null,"%","LIABILITY",null,"PHYS. DAM."]
[null,null,"% APPLIED"]
["MANAGEMENT"," 5% CR"]
[null,"5% DB"]
[]
[]
["EMPLOYEES","5% CR"]
[null,"5% DB"]
[]
[]
["EQUIPMENT","5% CR"]
[null,"10% DB"]
[]
[]
["SAFETY ORGANIZATION","10% CR"]
[null,"5% DB"]
[]
[]
["DISPERSION OR ","10% CR","N/A","N/A"]
["CONCENTRATION OF VALUES","10% DB"]
["(AUTO PD ONLY)"]
[]
[]
["TOTAL%  CR OR DB:",null,{"$f":"SUM(C19+C23+C27+C31)","v":0},{"$f":"SUM(D19+D23+D27+D31)","v":0},{"$f":"SUM(E19+E23+E27+E31+E35)","v":0},{"$f":"SUM(F19+F23+F27+F31+F35)","v":0}]
[]
[]
["UNDERWRITER SIGNATURE","DATE"]
[]
["NOTES"]
[]
["DO NOT USE NEGATIVE NUMBERS WHEN APPLYING A CREDIT"]
["SEE CLM LIABILITY AND PHYSICAL DAMAGE EXPERIENCE AND SCHEDULE RATING PLAN RULES FOR COMPLETE DESCRIPTION OF CHARACTERISTICS AND RULES FOR APPLICATION"]

{"sheet":"MD","index":22,"n_rows":48,"n_cols":8,"rows_kept":48,"cut":false,"hidden":false,"merged":[[13,1,13,6],[0,0,0,7],[1,0,1,7],[2,0,2,7],[3,0,3,7],[4,0,4,7],[5,0,5,7],[6,0,6,7],[7,1,7,6],[8,1,8,6],[34,7,37,7],[39,0,39,1],[42,1,42,6],[43,1,43,6],[14,1,14,6],[15,7,16,7],[18,7,21,7],[22,7,25,7],[26,7,29,7],[30,7,33,7]]}
["MARYLAND"]
["AIG PROPRIETARY SCHEDULE RATING PLAN"]
["As of JULY 2023"]
["SCHEDULE RATING MODIFICATIONS - AUTOMOBILE"]
["RATING INFORMATION FORM"]
["A schedule rating modification may also be applied to the otherwise chargeable premium in accordance with the following table, subject to a maximum credit of -40% or debit of +40%, to reflect such characteristics of the risk as are not reflected in its experience."]
[]
["NAMED INSURED","EFFECTIVE DATE",null,null,null,null,null,"AIG COMPANY AND POLICY NUMBER"]
[]
[]
["INSURED LOCATIONS BY STATE:"]
[]
[]
["RISK ","MODIFICATIONS"]
["CHARACTERISTICS"]
[null,"RANGE","CR","DB","RANGE","CR"," DB","REASONS"]
[null,null,"LIABILITY",null,null,"PHYS. DAM."]
[null,null,"% APPLIED",null,null,"% APPLIED"]
["MANAGEMENT","18% CR",null,null,"15% CR"]
[null,"18% DB",null,null,"15% DB"]
[]
[]
["EMPLOYEES","18% CR",null,null,"15% CR"]
[null,"18% DB",null,null,"15% DB"]
[]
[]
["EQUIPMENT","18% CR",null,null,"15% CR"]
[null,"18% DB",null,null,"15% DB"]
[]
[]
["SAFETY ORGANIZATION","21% CR",null,null,"15% CR"]
[null,"21% DB",null,null,"15% DB"]
[]
[]
["DISPERSION OR ","N/A","N/A","N/A","15% CR"]
["CONCENTRATION OF VALUES",null,null,null,"15% DB"]
["(AUTO PD ONLY)"]
[]
[]
["TOTAL%  CR OR DB:",null,{"$f":"SUM(C19+C23+C27+C31)","v":0},{"$f":"SUM(D19+D23+D27+D31)","v":0},null,{"$f":"SUM(F19+F23+F27+F31+F35)","v":0},{"$f":"SUM(G19+G23+G27+G31+G35)","v":0}]
[]
[]
["UNDERWRITER SIGNATURE","DATE"]
[]
["NOTES"]
[]
["DO NOT USE NEGATIVE NUMBERS WHEN APPLYING A CREDIT"]
["SEE CLM LIABILITY AND PHYSICAL DAMAGE EXPERIENCE AND SCHEDULE RATING PLAN RULES FOR COMPLETE DESCRIPTION OF CHARACTERISTICS AND RULES FOR APPLICATION"]

{"sheet":"ME","index":23,"n_rows":48,"n_cols":8,"rows_kept":48,"cut":false,"hidden":false,"merged":[[13,1,13,6],[0,0,0,7],[1,0,1,7],[2,0,2,7],[3,0,3,7],[4,0,4,7],[5,0,5,7],[6,0,6,7],[7,1,7,6],[8,1,8,6],[34,7,37,7],[39,0,39,1],[42,1,42,6],[43,1,43,6],[14,1,14,6],[15,7,16,7],[18,7,21,7],[22,7,25,7],[26,7,29,7],[30,7,33,7]]}
["MAINE"]
["AIG PROPRIETARY SCHEDULE RATING PLAN"]
["As of July 2023"]
["SCHEDULE RATING MODIFICATIONS - AUTOMOBILE"]
["RATING INFORMATION FORM"]
["A schedule rating modification may also be applied to the otherwise chargeable premium in accordance with the following table, subject to a maximum credit of -40% or debit of +40%, to reflect such characteristics of the risk as are not reflected in its experience."]
[]
["NAMED INSURED","EFFECTIVE DATE",null,null,null,null,null,"AIG COMPANY AND POLICY NUMBER"]
[]
[]
["INSURED LOCATIONS BY STATE:"]
[]
[]
["RISK ","MODIFICATIONS"]
["CHARACTERISTICS"]
[null,"RANGE","CR","DB","RANGE","CR"," DB","REASONS"]
[null,null,"LIABILITY",null,null,"PHYS. DAM."]
[null,null,"% APPLIED",null,null,"% APPLIED"]
["MANAGEMENT","18% CR",null,null,"15% CR"]
[null,"18% DB",null,null,"15% DB"]
[]
[]
["EMPLOYEES","18% CR",null,null,"15% CR"]
[null,"18% DB",null,null,"15% DB"]
[]
[]
["EQUIPMENT","18% CR",null,null,"15% CR"]
[null,"18% DB",null,null,"15% DB"]
[]
[]
["SAFETY ORGANIZATION","21% CR",null,null,"15% CR"]
[null,"21% DB",null,null,"15% DB"]
[]
[]
["DISPERSION OR ","N/A","N/A","N/A","15% CR"]
["CONCENTRATION OF VALUES",null,null,null,"15% DB"]
["(AUTO PD ONLY)"]
[]
[]
["TOTAL%  CR OR DB:",null,{"$f":"SUM(C19+C23+C27+C31)","v":0},{"$f":"SUM(D19+D23+D27+D31)","v":0},null,{"$f":"SUM(F19+F23+F27+F31+F35)","v":0},{"$f":"SUM(G19+G23+G27+G31+G35)","v":0}]
[]
[]
["UNDERWRITER SIGNATURE","DATE"]
[]
["NOTES"]
[]
["DO NOT USE NEGATIVE NUMBERS WHEN APPLYING A CREDIT"]
["SEE CLM LIABILITY AND PHYSICAL DAMAGE EXPERIENCE AND SCHEDULE RATING PLAN RULES FOR COMPLETE DESCRIPTION OF CHARACTERISTICS AND RULES FOR APPLICATION"]

{"sheet":"MI","index":24,"n_rows":48,"n_cols":7,"rows_kept":48,"cut":false,"hidden":false,"merged":[[5,0,5,6],[0,0,0,6],[1,0,1,6],[2,0,2,6],[3,0,3,6],[4,0,4,6],[18,6,21,6],[6,0,6,6],[7,1,7,5],[13,1,13,5],[14,1,14,5],[15,6,16,6],[16,2,16,3],[16,4,16,5],[17,2,17,5],[8,1,8,5],[44,1,44,5],[45,1,45,5],[46,1,46,5],[22,6,25,6],[26,6,29,6],[30,6,33,6],[34,6,37,6],[39,0,39,1],[42,1,42,5]]}
["MICHIGAN"]
["ISO COUNTRYWIDE SCHEDULE RATING PLAN"]
["As of July 2023"]
["SCHEDULE RATING MODIFICATIONS - AUTOMOBILE"]
["RATING INFORMATION FORM"]
["A schedule rating modification may also be applied to the otherwise chargeable premium in accordance with the following table, subject to a maximum credit of -25% or debit of +25%, to reflect such characteristics of the risk as are not reflected in its experience."]
[]
["NAMED INSURED","EFFECTIVE DATE",null,null,null,null,"AIG COMPANY AND POLICY NUMBER"]
[]
[]
["INSURED LOCATIONS BY STATE:"]
[]
[]
["RISK ","MODIFICATIONS"]
["CHARACTERISTICS"]
[null,"RANGE","CR","DB","CR"," DB","REASONS"]
[null,"%","LIABILITY",null,"PHYS. DAM."]
[null,null,"% APPLIED"]
["MANAGEMENT"," 5% CR"]
[null,"5% DB"]
[]
[]
["EMPLOYEES","5% CR"]
[null,"5% DB"]
[]
[]
["EQUIPMENT","5% CR"]
[null,"10% DB"]
[]
[]
["SAFETY ORGANIZATION","10% CR"]
[null,"5% DB"]
[]
[]
["DISPERSION OR ","10% CR","N/A","N/A"]
["CONCENTRATION OF VALUES","10% DB"]
["(AUTO PD ONLY)"]
[]
[]
["TOTAL%  CR OR DB:",null,{"$f":"SUM(C19+C23+C27+C31)","v":0},{"$f":"SUM(D19+D23+D27+D31)","v":0},{"$f":"SUM(E19+E23+E27+E31+E35)","v":0},{"$f":"SUM(F19+F23+F27+F31+F35)","v":0}]
[]
[]
["UNDERWRITER SIGNATURE","DATE"]
[]
["NOTES"]
[]
["DO NOT USE NEGATIVE NUMBERS WHEN APPLYING A CREDIT"]
["SEE CLM LIABILITY AND PHYSICAL DAMAGE EXPERIENCE AND SCHEDULE RATING PLAN RULES FOR COMPLETE DESCRIPTION OF CHARACTERISTICS AND RULES FOR APPLICATION"]

{"sheet":"MN","index":25,"n_rows":48,"n_cols":8,"rows_kept":48,"cut":false,"hidden":false,"merged":[[13,1,13,6],[0,0,0,7],[1,0,1,7],[2,0,2,7],[3,0,3,7],[4,0,4,7],[5,0,5,7],[6,0,6,7],[7,1,7,6],[8,1,8,6],[34,7,37,7],[39,0,39,1],[42,1,42,6],[43,1,43,6],[14,1,14,6],[15,7,16,7],[18,7,21,7],[22,7,25,7],[26,7,29,7],[30,7,33,7]]}
["MINNESOTA"]
["AIG PROPRIETARY SCHEDULE RATING PLAN"]
["As of July 2023"]
["SCHEDULE RATING MODIFICATIONS - AUTOMOBILE"]
["RATING INFORMATION FORM"]
["A schedule rating modification may also be applied to the otherwise chargeable premium in accordance with the following table, subject to a maximum credit of -40% or debit of +40%, to reflect such characteristics of the risk as are not reflected in its experience."]
[]
["NAMED INSURED","EFFECTIVE DATE",null,null,null,null,null,"AIG COMPANY AND POLICY NUMBER"]
[]
[]
["INSURED LOCATIONS BY STATE:"]
[]
[]
["RISK ","MODIFICATIONS"]
["CHARACTERISTICS"]
[null,"RANGE","CR","DB","RANGE","CR"," DB","REASONS"]
[null,null,"LIABILITY",null,null,"PHYS. DAM."]
[null,null,"% APPLIED",null,null,"% APPLIED"]
["MANAGEMENT","18% CR",null,null,"15% CR"]
[null,"18% DB",null,null,"15% DB"]
[]
[]
["EMPLOYEES","18% CR",null,null,"15% CR"]
[null,"18% DB",null,null,"15% DB"]
[]
[]
["EQUIPMENT","18% CR",null,null,"15% CR"]
[null,"18% DB",null,null,"15% DB"]
[]
[]
["SAFETY ORGANIZATION","21% CR",null,null,"15% CR"]
[null,"21% DB",null,null,"15% DB"]
[]
[]
["DISPERSION OR ","N/A","N/A","N/A","15% CR"]
["CONCENTRATION OF VALUES",null,null,null,"15% DB"]
["(AUTO PD ONLY)"]
[]
[]
["TOTAL%  CR OR DB:",null,{"$f":"SUM(C19+C23+C27+C31)","v":0},{"$f":"SUM(D19+D23+D27+D31)","v":0},null,{"$f":"SUM(F19+F23+F27+F31+F35)","v":0},{"$f":"SUM(G19+G23+G27+G31+G35)","v":0}]
[]
[]
["UNDERWRITER SIGNATURE","DATE"]
[]
["NOTES"]
[]
["DO NOT USE NEGATIVE NUMBERS WHEN APPLYING A CREDIT"]
["SEE CLM LIABILITY AND PHYSICAL DAMAGE EXPERIENCE AND SCHEDULE RATING PLAN RULES FOR COMPLETE DESCRIPTION OF CHARACTERISTICS AND RULES FOR APPLICATION"]

{"sheet":"MO","index":26,"n_rows":48,"n_cols":7,"rows_kept":48,"cut":false,"hidden":false,"merged":[[5,0,5,6],[0,0,0,6],[1,0,1,6],[2,0,2,6],[3,0,3,6],[4,0,4,6],[18,6,21,6],[6,0,6,6],[7,1,7,5],[13,1,13,5],[14,1,14,5],[15,6,16,6],[16,2,16,3],[16,4,16,5],[17,2,17,5],[8,1,8,5],[43,1,43,5],[44,1,44,5],[45,1,45,5],[22,6,25,6],[26,6,29,6],[30,6,33,6],[34,6,37,6],[39,0,39,1],[42,1,42,5]]}
["MISSOURI"]
["ISO COUNTRYWIDE SCHEDULE RATING PLAN"]
["As of July 2023"]
["SCHEDULE RATING MODIFICATIONS - AUTOMOBILE"]
["RATING INFORMATION FORM"]
["A schedule rating modification may also be applied to the otherwise chargeable premium in accordance with the following table, subject to a maximum credit of -25% or debit of +25%, to reflect such characteristics of the risk as are not reflected in its experience."]
[]
["NAMED INSURED","EFFECTIVE DATE",null,null,null,null,"AIG COMPANY AND POLICY NUMBER"]
[]
[]
["INSURED LOCATIONS BY STATE:"]
[]
[]
["RISK ","MODIFICATIONS"]
["CHARACTERISTICS"]
[null,"RANGE","CR","DB","CR"," DB","REASONS"]
[null,"%","LIABILITY",null,"PHYS. DAM."]
[null,null,"% APPLIED"]
["MANAGEMENT"," 5% CR"]
[null,"5% DB"]
[]
[]
["EMPLOYEES","5% CR"]
[null,"5% DB"]
[]
[]
["EQUIPMENT","5% CR"]
[null,"10% DB"]
[]
[]
["SAFETY ORGANIZATION","10% CR"]
[null,"5% DB"]
[]
[]
["DISPERSION OR ","10% CR","N/A","N/A"]
["CONCENTRATION OF VALUES","10% DB"]
["(AUTO PD ONLY)"]
[]
[]
["TOTAL%  CR OR DB:",null,{"$f":"SUM(C19+C23+C27+C31)","v":0},{"$f":"SUM(D19+D23+D27+D31)","v":0},{"$f":"SUM(E19+E23+E27+E31+E35)","v":0},{"$f":"SUM(F19+F23+F27+F31+F35)","v":0}]
[]
[]
["UNDERWRITER SIGNATURE","DATE"]
[]
["NOTES"]
[]
["DO NOT USE NEGATIVE NUMBERS WHEN APPLYING A CREDIT"]
["SEE CLM LIABILITY AND PHYSICAL DAMAGE EXPERIENCE AND SCHEDULE RATING PLAN RULES FOR COMPLETE DESCRIPTION OF CHARACTERISTICS AND RULES FOR APPLICATION"]

{"sheet":"MS","index":27,"n_rows":48,"n_cols":8,"rows_kept":48,"cut":false,"hidden":false,"merged":[[13,1,13,6],[0,0,0,7],[1,0,1,7],[2,0,2,7],[3,0,3,7],[4,0,4,7],[5,0,5,7],[6,0,6,7],[7,1,7,6],[8,1,8,6],[34,7,37,7],[39,0,39,1],[42,1,42,6],[43,1,43,6],[14,1,14,6],[15,7,16,7],[18,7,21,7],[22,7,25,7],[26,7,29,7],[30,7,33,7]]}
["MISSISSIPPI"]
["AIG PROPRIETARY SCHEDULE RATING PLAN"]
["As of July 2023"]
["SCHEDULE RATING MODIFICATIONS - AUTOMOBILE"]
["RATING INFORMATION FORM"]
["A schedule rating modification may also be applied to the otherwise chargeable premium in accordance with the following table, subject to a maximum credit of -40% or debit of +40%, to reflect such characteristics of the risk as are not reflected in its experience."]
[]
["NAMED INSURED","EFFECTIVE DATE",null,null,null,null,null,"AIG COMPANY AND POLICY NUMBER"]
[]
[]
["INSURED LOCATIONS BY STATE:"]
[]
[]
["RISK ","MODIFICATIONS"]
["CHARACTERISTICS"]
[null,"RANGE","CR","DB","RANGE","CR"," DB","REASONS"]
[null,null,"LIABILITY",null,null,"PHYS. DAM."]
[null,null,"% APPLIED",null,null,"% APPLIED"]
["MANAGEMENT","18% CR",null,null,"15% CR"]
[null,"18% DB",null,null,"15% DB"]
[]
[]
["EMPLOYEES","18% CR",null,null,"15% CR"]
[null,"18% DB",null,null,"15% DB"]
[]
[]
["EQUIPMENT","18% CR",null,null,"15% CR"]
[null,"18% DB",null,null,"15% DB"]
[]
[]
["SAFETY ORGANIZATION","21% CR",null,null,"15% CR"]
[null,"21% DB",null,null,"15% DB"]
[]
[]
["DISPERSION OR ","N/A","N/A","N/A","15% CR"]
["CONCENTRATION OF VALUES",null,null,null,"15% DB"]
["(AUTO PD ONLY)"]
[]
[]
["TOTAL%  CR OR DB:",null,{"$f":"SUM(C19+C23+C27+C31)","v":0},{"$f":"SUM(D19+D23+D27+D31)","v":0},null,{"$f":"SUM(F19+F23+F27+F31+F35)","v":0},{"$f":"SUM(G19+G23+G27+G31+G35)","v":0}]
[]
[]
["UNDERWRITER SIGNATURE","DATE"]
[]
["NOTES"]
[]
["DO NOT USE NEGATIVE NUMBERS WHEN APPLYING A CREDIT"]
["SEE CLM LIABILITY AND PHYSICAL DAMAGE EXPERIENCE AND SCHEDULE RATING PLAN RULES FOR COMPLETE DESCRIPTION OF CHARACTERISTICS AND RULES FOR APPLICATION"]

{"sheet":"MT","index":28,"n_rows":48,"n_cols":8,"rows_kept":48,"cut":false,"hidden":false,"merged":[[13,1,13,6],[0,0,0,7],[1,0,1,7],[2,0,2,7],[3,0,3,7],[4,0,4,7],[5,0,5,7],[6,0,6,7],[7,1,7,6],[8,1,8,6],[34,7,37,7],[39,0,39,1],[42,1,42,6],[43,1,43,6],[14,1,14,6],[15,7,16,7],[18,7,21,7],[22,7,25,7],[26,7,29,7],[30,7,33,7]]}
["MONTANA"]
["AIG PROPRIETARY SCHEDULE RATING PLAN"]
["As of July 2023"]
["SCHEDULE RATING MODIFICATIONS - AUTOMOBILE"]
["RATING INFORMATION FORM"]
["A schedule rating modification may also be applied to the otherwise chargeable premium in accordance with the following table, subject to a maximum credit of -40% or debit of +40%, to reflect such characteristics of the risk as are not reflected in its experience."]
[]
["NAMED INSURED","EFFECTIVE DATE",null,null,null,null,null,"AIG COMPANY AND POLICY NUMBER"]
[]
[]
["INSURED LOCATIONS BY STATE:"]
[]
[]
["RISK ","MODIFICATIONS"]
["CHARACTERISTICS"]
[null,"RANGE","CR","DB","RANGE","CR"," DB","REASONS"]
[null,null,"LIABILITY",null,null,"PHYS. DAM."]
[null,null,"% APPLIED",null,null,"% APPLIED"]
["MANAGEMENT","18% CR",null,null,"15% CR"]
[null,"18% DB",null,null,"15% DB"]
[]
[]
["EMPLOYEES","18% CR",null,null,"15% CR"]
[null,"18% DB",null,null,"15% DB"]
[]
[]
["EQUIPMENT","18% CR",null,null,"15% CR"]
[null,"18% DB",null,null,"15% DB"]
[]
[]
["SAFETY ORGANIZATION","21% CR",null,null,"15% CR"]
[null,"21% DB",null,null,"15% DB"]
[]
[]
["DISPERSION OR ","N/A","N/A","N/A","15% CR"]
["CONCENTRATION OF VALUES",null,null,null,"15% DB"]
["(AUTO PD ONLY)"]
[]
[]
["TOTAL%  CR OR DB:",null,{"$f":"SUM(C19+C23+C27+C31)","v":0},{"$f":"SUM(D19+D23+D27+D31)","v":0},null,{"$f":"SUM(F19+F23+F27+F31+F35)","v":0},{"$f":"SUM(G19+G23+G27+G31+G35)","v":0}]
[]
[]
["UNDERWRITER SIGNATURE","DATE"]
[]
["NOTES"]
[]
["DO NOT USE NEGATIVE NUMBERS WHEN APPLYING A CREDIT"]
["SEE CLM LIABILITY AND PHYSICAL DAMAGE EXPERIENCE AND SCHEDULE RATING PLAN RULES FOR COMPLETE DESCRIPTION OF CHARACTERISTICS AND RULES FOR APPLICATION"]

{"sheet":"NE","index":29,"n_rows":2,"n_cols":1,"rows_kept":2,"cut":false,"hidden":false,"merged":[[11,0,11,8],[0,0,0,8],[1,0,1,8],[2,0,2,8],[3,0,3,8],[4,0,4,8],[5,0,5,8],[6,0,6,8],[7,0,7,8],[8,0,8,8],[9,0,9,8],[10,0,10,8],[23,0,23,8],[12,0,12,8],[13,0,13,8],[14,0,14,8],[15,0,15,8],[16,0,16,8],[17,0,17,8],[18,0,18,8],[19,0,19,8],[20,0,20,8],[21,0,21,8],[22,0,22,8],[35,0,35,8],[24,0,24,8],[25,0,25,8],[26,0,26,8],[27,0,27,8],[28,0,28,8],[29,0,29,8],[30,0,30,8],[31,0,31,8],[32,0,32,8],[33,0,33,8],[34,0,34,8],[42,0,42,8],[43,0,43,8],[44,0,44,8],[45,0,45,8],[36,0,36,8],[37,0,37,8],[38,0,38,8],[39,0,39,8],[40,0,40,8],[41,0,41,8]]}
["NEBRASKA"]
["SCHEDULE RATING IS NOT ALLOWED IN NEBRASKA "]

{"sheet":"NV","index":30,"n_rows":48,"n_cols":7,"rows_kept":48,"cut":false,"hidden":false,"merged":[[5,0,5,6],[0,0,0,6],[1,0,1,6],[2,0,2,6],[3,0,3,6],[4,0,4,6],[18,6,21,6],[6,0,6,6],[7,1,7,5],[13,1,13,5],[14,1,14,5],[15,6,16,6],[16,2,16,3],[16,4,16,5],[17,2,17,5],[8,1,8,5],[43,1,43,5],[44,1,44,5],[45,1,45,5],[22,6,25,6],[26,6,29,6],[30,6,33,6],[34,6,37,6],[39,0,39,1],[42,1,42,5]]}
["NEVADA"]
["ISO COUNTRYWIDE SCHEDULE RATING PLAN"]
["As of July 2023"]
["SCHEDULE RATING MODIFICATIONS - AUTOMOBILE"]
["RATING INFORMATION FORM"]
["A schedule rating modification may also be applied to the otherwise chargeable premium in accordance with the following table, subject to a maximum credit of -25% or debit of +25%, to reflect such characteristics of the risk as are not reflected in its experience."]
[]
["NAMED INSURED","EFFECTIVE DATE",null,null,null,null,"AIG COMPANY AND POLICY NUMBER"]
[]
[]
["INSURED LOCATIONS BY STATE:"]
[]
[]
["RISK ","MODIFICATIONS"]
["CHARACTERISTICS"]
[null,"RANGE","CR","DB","CR"," DB","REASONS"]
[null,"%","LIABILITY",null,"PHYS. DAM."]
[null,null,"% APPLIED"]
["MANAGEMENT"," 5% CR"]
[null,"5% DB"]
[]
[]
["EMPLOYEES","5% CR"]
[null,"5% DB"]
[]
[]
["EQUIPMENT","5% CR"]
[null,"10% DB"]
[]
[]
["SAFETY ORGANIZATION","10% CR"]
[null,"5% DB"]
[]
[]
["DISPERSION OR ","10% CR","N/A","N/A"]
["CONCENTRATION OF VALUES","10% DB"]
["(AUTO PD ONLY)"]
[]
[]
["TOTAL%  CR OR DB:",null,{"$f":"SUM(C19+C23+C27+C31)","v":0},{"$f":"SUM(D19+D23+D27+D31)","v":0},{"$f":"SUM(E19+E23+E27+E31+E35)","v":0},{"$f":"SUM(F19+F23+F27+F31+F35)","v":0}]
[]
[]
["UNDERWRITER SIGNATURE","DATE"]
[]
["NOTES"]
[]
["DO NOT USE NEGATIVE NUMBERS WHEN APPLYING A CREDIT"]
["SEE CLM LIABILITY AND PHYSICAL DAMAGE EXPERIENCE AND SCHEDULE RATING PLAN RULES FOR COMPLETE DESCRIPTION OF CHARACTERISTICS AND RULES FOR APPLICATION"]

{"sheet":"NH","index":31,"n_rows":48,"n_cols":8,"rows_kept":48,"cut":false,"hidden":false,"merged":[[13,1,13,6],[0,0,0,7],[1,0,1,7],[2,0,2,7],[3,0,3,7],[4,0,4,7],[5,0,5,7],[6,0,6,7],[7,1,7,6],[8,1,8,6],[34,7,37,7],[39,0,39,1],[42,1,42,6],[43,1,43,6],[14,1,14,6],[15,7,16,7],[18,7,21,7],[22,7,25,7],[26,7,29,7],[30,7,33,7]]}
["NEW HAMPSHIRE"]
["AIG PROPRIETARY SCHEDULE RATING PLAN"]
["As of July 2023"]
["SCHEDULE RATING MODIFICATIONS - AUTOMOBILE"]
["RATING INFORMATION FORM"]
["A schedule rating modification may also be applied to the otherwise chargeable premium in accordance with the following table, subject to a maximum credit of -40% or debit of +40%, to reflect such characteristics of the risk as are not reflected in its experience."]
[]
["NAMED INSURED","EFFECTIVE DATE",null,null,null,null,null,"AIG COMPANY AND POLICY NUMBER"]
[]
[]
["INSURED LOCATIONS BY STATE:"]
[]
[]
["RISK ","MODIFICATIONS"]
["CHARACTERISTICS"]
[null,"RANGE","CR","DB","RANGE","CR"," DB","REASONS"]
[null,null,"LIABILITY",null,null,"PHYS. DAM."]
[null,null,"% APPLIED",null,null,"% APPLIED"]
["MANAGEMENT","18% CR",null,null,"15% CR"]
[null,"18% DB",null,null,"15% DB"]
[]
[]
["EMPLOYEES","18% CR",null,null,"15% CR"]
[null,"18% DB",null,null,"15% DB"]
[]
[]
["EQUIPMENT","18% CR",null,null,"15% CR"]
[null,"18% DB",null,null,"15% DB"]
[]
[]
["SAFETY ORGANIZATION","21% CR",null,null,"15% CR"]
[null,"21% DB",null,null,"15% DB"]
[]
[]
["DISPERSION OR ","N/A","N/A","N/A","15% CR"]
["CONCENTRATION OF VALUES",null,null,null,"15% DB"]
["(AUTO PD ONLY)"]
[]
[]
["TOTAL%  CR OR DB:",null,{"$f":"SUM(C19+C23+C27+C31)","v":0},{"$f":"SUM(D19+D23+D27+D31)","v":0},null,{"$f":"SUM(F19+F23+F27+F31+F35)","v":0},{"$f":"SUM(G19+G23+G27+G31+G35)","v":0}]
[]
[]
["UNDERWRITER SIGNATURE","      DATE"]
[]
["NOTES"]
[]
["DO NOT USE NEGATIVE NUMBERS WHEN APPLYING A CREDIT"]
["SEE CLM LIABILITY AND PHYSICAL DAMAGE EXPERIENCE AND SCHEDULE RATING PLAN RULES FOR COMPLETE DESCRIPTION OF CHARACTERISTICS AND RULES FOR APPLICATION"]

{"sheet":"NJ","index":32,"n_rows":48,"n_cols":7,"rows_kept":48,"cut":false,"hidden":false,"merged":[[5,0,5,6],[0,0,0,6],[1,0,1,6],[2,0,2,6],[3,0,3,6],[4,0,4,6],[18,6,21,6],[6,0,6,6],[7,1,7,5],[13,1,13,5],[14,1,14,5],[15,6,16,6],[16,2,16,3],[16,4,16,5],[17,2,17,5],[8,1,8,5],[43,1,43,5],[44,1,44,5],[45,1,45,5],[22,6,25,6],[26,6,29,6],[30,6,33,6],[34,6,37,6],[39,0,39,1],[42,1,42,5]]}
["NEW JERSEY"]
["ISO COUNTRYWIDE SCHEDULE RATING PLAN"]
["As of July 2023"]
["SCHEDULE RATING MODIFICATIONS - AUTOMOBILE"]
["RATING INFORMATION FORM"]
["A schedule rating modification may also be applied to the otherwise chargeable premium in accordance with the following table, subject to a maximum credit of -25% or debit of +25%, to reflect such characteristics of the risk as are not reflected in its experience."]
[]
["NAMED INSURED","EFFECTIVE DATE",null,null,null,null,"AIG COMPANY AND POLICY NUMBER"]
[]
[]
["INSURED LOCATIONS BY STATE:"]
[]
[]
["RISK ","MODIFICATIONS"]
["CHARACTERISTICS"]
[null,"RANGE","CR","DB","CR"," DB","REASONS"]
[null,"%","LIABILITY",null,"PHYS. DAM."]
[null,null,"% APPLIED"]
["MANAGEMENT"," 5% CR"]
[null,"5% DB"]
[]
[]
["EMPLOYEES","5% CR"]
[null,"5% DB"]
[]
[]
["EQUIPMENT","5% CR"]
[null,"10% DB"]
[]
[]
["SAFETY ORGANIZATION","10% CR"]
[null,"5% DB"]
[]
[]
["DISPERSION OR ","10% CR","N/A","N/A"]
["CONCENTRATION OF VALUES","10% DB"]
["(AUTO PD ONLY)"]
[]
[]
["TOTAL%  CR OR DB:",null,{"$f":"SUM(C19+C23+C27+C31)","v":0},{"$f":"SUM(D19+D23+D27+D31)","v":0},{"$f":"SUM(E19+E23+E27+E31+E35)","v":0},{"$f":"SUM(F19+F23+F27+F31+F35)","v":0}]
[]
[]
["UNDERWRITER SIGNATURE","DATE"]
[]
["NOTES"]
[]
["DO NOT USE NEGATIVE NUMBERS WHEN APPLYING A CREDIT"]
["SEE CLM LIABILITY AND PHYSICAL DAMAGE EXPERIENCE AND SCHEDULE RATING PLAN RULES FOR COMPLETE DESCRIPTION OF CHARACTERISTICS AND RULES FOR APPLICATION"]

{"sheet":"NM","index":33,"n_rows":48,"n_cols":7,"rows_kept":48,"cut":false,"hidden":false,"merged":[[5,0,5,6],[0,0,0,6],[1,0,1,6],[2,0,2,6],[3,0,3,6],[4,0,4,6],[18,6,21,6],[6,0,6,6],[7,1,7,5],[8,2,8,4],[13,1,13,5],[14,1,14,5],[15,6,16,6],[16,2,16,3],[16,4,16,5],[17,2,17,5],[43,1,43,5],[44,1,44,5],[45,1,45,5],[22,6,25,6],[26,6,29,6],[30,6,33,6],[34,6,37,6],[39,0,39,1],[42,1,42,5]]}
["NEW MEXICO"]
["ISO COUNTRYWIDE SCHEDULE RATING PLAN"]
["As of July 2023"]
["SCHEDULE RATING MODIFICATIONS - AUTOMOBILE"]
["RATING INFORMATION FORM"]
["A schedule rating modification may also be applied to the otherwise chargeable premium in accordance with the following table, subject to a maximum credit of -25% or debit of +25%, to reflect such characteristics of the risk as are not reflected in its experience."]
[]
["NAMED INSURED","EFFECTIVE DATE",null,null,null,null,"AIG COMPANY AND POLICY NUMBER"]
[]
[]
["INSURED LOCATIONS BY STATE:"]
[]
[]
["RISK ","MODIFICATIONS"]
["CHARACTERISTICS"]
[null,"RANGE","CR","DB","CR"," DB","REASONS"]
[null,"%","LIABILITY",null,"PHYS. DAM."]
[null,null,"% APPLIED"]
["MANAGEMENT"," 5% CR"]
[null,"5% DB"]
[]
[]
["EMPLOYEES","5% CR"]
[null,"5% DB"]
[]
[]
["EQUIPMENT","5% CR"]
[null,"10% DB"]
[]
[]
["SAFETY ORGANIZATION","10% CR"]
[null,"5% DB"]
[]
[]
["DISPERSION OR ","10% CR","N/A","N/A"]
["CONCENTRATION OF VALUES","10% DB"]
["(AUTO PD ONLY)"]
[]
[]
["TOTAL%  CR OR DB:",null,{"$f":"SUM(C19+C23+C27+C31)","v":0},{"$f":"SUM(D19+D23+D27+D31)","v":0},{"$f":"SUM(E19+E23+E27+E31+E35)","v":0},{"$f":"SUM(F19+F23+F27+F31+F35)","v":0}]
[]
[]
["UNDERWRITER SIGNATURE","DATE"]
[]
["NOTES"]
[]
["DO NOT USE NEGATIVE NUMBERS WHEN APPLYING A CREDIT"]
["SEE CLM LIABILITY AND PHYSICAL DAMAGE EXPERIENCE AND SCHEDULE RATING PLAN RULES FOR COMPLETE DESCRIPTION OF CHARACTERISTICS AND RULES FOR APPLICATION"]

{"sheet":"NY","index":34,"n_rows":53,"n_cols":7,"rows_kept":53,"cut":false,"hidden":false,"merged":[[49,1,49,5],[50,1,50,5],[12,1,12,5],[47,1,47,5],[21,2,21,3],[21,4,21,5],[18,1,18,5],[44,0,44,1],[19,1,19,5],[22,2,22,5],[0,0,0,6],[11,0,11,6],[6,0,6,6],[9,0,9,6],[48,1,48,5],[1,0,1,6],[2,0,2,6],[3,0,3,6],[4,0,4,6],[39,6,42,6],[20,6,21,6],[27,6,30,6],[31,6,34,6],[23,6,26,6],[35,6,38,6],[13,1,13,5]]}
["NEW YORK "]
["ISO-NEW YORK-SCHEDULE RATING PLAN"]
["As of JULY 2023"]
["SCHEDULE RATING MODIFICATIONS - AUTOMOBILE"]
["RATING INFORMATION FORM"]
["NEW YORK: "]
["A schedule rating modification may be applied to the otherwise chargeable premium in accordance with the following table, subject to a maximum credit of -15% or debit of +15%, to reflect such characteristics of the risk as are not reflected in its experience."]
[]
["Overall effect of the schedule & experience mod cannot exceed 25% except when the experience mod is more than 25%. "]
["When the experience mod is greater than 25% no additional schedule modification can be provided that would increase the overall mod to be more than the expereince mod.  Schedule rating that reduced the experience credit mod"]
[]
[]
["NAMED INSURED","EFFECTIVE DATE",null,null,null,null,"AIG COMPANY AND POLICY NUMBER"]
[]
[]
["INSURED LOCATIONS BY STATE:"]
[]
[]
["RISK ","MODIFICATIONS"]
["CHARACTERISTICS"]
[null,"RANGE","CR","DB","CR"," DB","REASONS"]
[null,"%","LIABILITY",null,"PHYS. DAM."]
[null,null,"% APPLIED"]
["MANAGEMENT"," 5% CR"]
[null,"5% DB"]
[]
[]
["EMPLOYEES","5% CR"]
[null,"5% DB"]
[]
[]
["EQUIPMENT","5% CR"]
[null,"10% DB"]
[]
[]
["SAFETY ORGANIZATION","10% CR"]
[null,"5% DB"]
[]
[]
["DISPERSION OR ","10% CR","N/A","N/A"]
["CONCENTRATION OF VALUES","10% DB"]
["(AUTO PD ONLY)"]
[]
[]
["TOTAL%  CR OR DB:",null,{"$f":"SUM(C24+C28+C32+C36)","v":0},{"$f":"SUM(D24+D28+D32+D36)","v":0},{"$f":"SUM(E24+E28+E32+E36+E40)","v":0},{"$f":"SUM(F24+F28+F32+F36+F40)","v":0}]
[]
[]
["UNDERWRITER SIGNATURE","DATE"]
[]
["NOTES"]
[]
["DO NOT USE NEGATIVE NUMBERS WHEN APPLYING A CREDIT"]
["SEE CLM LIABILITY AND PHYSICAL DAMAGE EXPERIENCE AND SCHEDULE RATING PLAN RULES FOR COMPLETE DESCRIPTION OF CHARACTERISTICS AND RULES FOR APPLICATION"]

{"sheet":"NC","index":35,"n_rows":48,"n_cols":8,"rows_kept":48,"cut":false,"hidden":false,"merged":[[13,1,13,6],[0,0,0,6],[1,0,1,7],[2,0,2,7],[3,0,3,7],[4,0,4,7],[5,0,5,7],[6,0,6,7],[7,1,7,6],[8,1,8,6],[45,1,45,6],[14,1,14,6],[15,7,16,7],[18,7,21,7],[22,7,25,7],[26,7,29,7],[30,7,33,7],[34,7,37,7],[39,0,39,1],[42,1,42,6],[43,1,43,6],[44,1,44,6]]}
["NORTH CAROLINA"]
["AIG PROPRIETARY SCHEDULE RATING PLAN"]
["As of July 2023"]
["SCHEDULE RATING MODIFICATIONS - AUTOMOBILE"]
["RATING INFORMATION FORM"]
["A schedule rating modification may also be applied to the otherwise chargeable premium in accordance with the following table, subject to a maximum credit of -50% or debit of +50%, to reflect such characteristics of the risk as are not reflected in its experience."]
[]
["NAMED INSURED","EFFECTIVE DATE",null,null,null,null,null,"AIG COMPANY AND POLICY NUMBER"]
[]
[]
["INSURED LOCATIONS BY STATE:"]
[]
[]
["RISK ","MODIFICATIONS"]
["CHARACTERISTICS"]
[null,"RANGE","CR","DB","RANGE","CR"," DB","REASONS"]
[null,null,"LIABILITY",null,null,"PHYS. DAM."]
[null,null,"% APPLIED",null,null,"% APPLIED"]
["MANAGEMENT","18% CR",null,null,"15% CR"]
[null,"18% DB",null,null,"15% DB"]
[]
[]
["EMPLOYEES","18% CR",null,null,"15% CR"]
[null,"18% DB",null,null,"15% DB"]
[]
[]
["EQUIPMENT","18% CR",null,null,"15% CR"]
[null,"18% DB",null,null,"15% DB"]
[]
[]
["SAFETY ORGANIZATION","21% CR",null,null,"15% CR"]
[null,"21% DB",null,null,"15% DB"]
[]
[]
["DISPERSION OR ","N/A","N/A","N/A","15% CR"]
["CONCENTRATION OF VALUES",null,null,null,"15% DB"]
["(AUTO PD ONLY)"]
[]
[]
["TOTAL%  CR OR DB:",null,{"$f":"SUM(C19+C23+C27+C31)","v":0},{"$f":"SUM(D19+D23+D27+D31)","v":0},null,{"$f":"SUM(F19+F23+F27+F31+F35)","v":0},{"$f":"SUM(G19+G23+G27+G31+G35)","v":0}]
[]
[]
["UNDERWRITER SIGNATURE","     DATE"]
[]
["NOTES"]
[]
["DO NOT USE NEGATIVE NUMBERS WHEN APPLYING A CREDIT"]
["SEE CLM LIABILITY AND PHYSICAL DAMAGE EXPERIENCE AND SCHEDULE RATING PLAN RULES FOR COMPLETE DESCRIPTION OF CHARACTERISTICS AND RULES FOR APPLICATION"]

{"sheet":"ND","index":36,"n_rows":48,"n_cols":7,"rows_kept":48,"cut":false,"hidden":false,"merged":[[5,0,5,6],[0,0,0,6],[1,0,1,6],[2,0,2,6],[3,0,3,6],[4,0,4,6],[18,6,21,6],[6,0,6,6],[7,1,7,5],[13,1,13,5],[14,1,14,5],[15,6,16,6],[16,2,16,3],[16,4,16,5],[17,2,17,5],[8,1,8,5],[43,1,43,5],[44,1,44,5],[45,1,45,5],[22,6,25,6],[26,6,29,6],[30,6,33,6],[34,6,37,6],[39,0,39,1],[42,1,42,5]]}
["NORTH DAKOTA"]
["ISO COUNTRYWIDE SCHEDULE RATING PLAN"]
["As of JULY 2023"]
["SCHEDULE RATING MODIFICATIONS - AUTOMOBILE"]
["RATING INFORMATION FORM"]
["A schedule rating modification may also be applied to the otherwise chargeable premium in accordance with the following table, subject to a maximum credit of -25% or debit of +25%, to reflect such characteristics of the risk as are not reflected in its experience."]
[]
["NAMED INSURED","EFFECTIVE DATE",null,null,null,null,"AIG COMPANY AND POLICY NUMBER"]
[]
[]
["INSURED LOCATIONS BY STATE:"]
[]
[]
["RISK ","MODIFICATIONS"]
["CHARACTERISTICS"]
[null,"RANGE","CR","DB","CR"," DB","REASONS"]
[null,"%","LIABILITY",null,"PHYS. DAM."]
[null,null,"% APPLIED"]
["MANAGEMENT"," 5% CR"]
[null,"5% DB"]
[]
[]
["EMPLOYEES","5% CR"]
[null,"5% DB"]
[]
[]
["EQUIPMENT","5% CR"]
[null,"10% DB"]
[]
[]
["SAFETY ORGANIZATION","10% CR"]
[null,"5% DB"]
[]
[]
["DISPERSION OR ","10% CR","N/A","N/A"]
["CONCENTRATION OF VALUES","10% DB"]
["(AUTO PD ONLY)"]
[]
[]
["TOTAL%  CR OR DB:",null,{"$f":"SUM(C19+C23+C27+C31)","v":0},{"$f":"SUM(D19+D23+D27+D31)","v":0},{"$f":"SUM(E19+E23+E27+E31+E35)","v":0},{"$f":"SUM(F19+F23+F27+F31+F35)","v":0}]
[]
[]
["UNDERWRITER SIGNATURE","DATE"]
[]
["NOTES"]
[]
["DO NOT USE NEGATIVE NUMBERS WHEN APPLYING A CREDIT"]
["SEE CLM LIABILITY AND PHYSICAL DAMAGE EXPERIENCE AND SCHEDULE RATING PLAN RULES FOR COMPLETE DESCRIPTION OF CHARACTERISTICS AND RULES FOR APPLICATION"]

{"sheet":"OH","index":37,"n_rows":48,"n_cols":7,"rows_kept":48,"cut":false,"hidden":false,"merged":[[5,0,5,6],[0,0,0,6],[1,0,1,6],[2,0,2,6],[3,0,3,6],[4,0,4,6],[18,6,21,6],[6,0,6,6],[7,1,7,5],[13,1,13,5],[14,1,14,5],[15,6,16,6],[16,2,16,3],[16,4,16,5],[17,2,17,5],[8,1,8,5],[43,1,43,5],[44,1,44,5],[45,1,45,5],[22,6,25,6],[26,6,29,6],[30,6,33,6],[34,6,37,6],[39,0,39,1],[42,1,42,5]]}
["OHIO"]
["ISO COUNTRYWIDE SCHEDULE RATING PLAN"]
["As of July 2023"]
["SCHEDULE RATING MODIFICATIONS - AUTOMOBILE"]
["RATING INFORMATION FORM"]
["A schedule rating modification may also be applied to the otherwise chargeable premium in accordance with the following table, subject to a maximum credit of -25% or debit of +25%, to reflect such characteristics of the risk as are not reflected in its experience."]
[]
["NAMED INSURED","EFFECTIVE DATE",null,null,null,null,"AIG COMPANY AND POLICY NUMBER"]
[]
[]
["INSURED LOCATIONS BY STATE:"]
[]
[]
["RISK ","MODIFICATIONS"]
["CHARACTERISTICS"]
[null,"RANGE","CR","DB","CR"," DB","REASONS"]
[null,"%","LIABILITY",null,"PHYS. DAM."]
[null,null,"% APPLIED"]
["MANAGEMENT"," 5% CR"]
[null,"5% DB"]
[]
[]
["EMPLOYEES","5% CR"]
[null,"5% DB"]
[]
[]
["EQUIPMENT","5% CR"]
[null,"10% DB"]
[]
[]
["SAFETY ORGANIZATION","10% CR"]
[null,"5% DB"]
[]
[]
["DISPERSION OR ","10% CR","N/A","N/A"]
["CONCENTRATION OF VALUES","10% DB"]
["(AUTO PD ONLY)"]
[]
[]
["TOTAL%  CR OR DB:",null,{"$f":"SUM(C19+C23+C27+C31)","v":0},{"$f":"SUM(D19+D23+D27+D31)","v":0},{"$f":"SUM(E19+E23+E27+E31+E35)","v":0},{"$f":"SUM(F19+F23+F27+F31+F35)","v":0}]
[]
[]
["UNDERWRITER SIGNATURE","DATE"]
[]
["NOTES"]
[]
["DO NOT USE NEGATIVE NUMBERS WHEN APPLYING A CREDIT"]
["SEE CLM LIABILITY AND PHYSICAL DAMAGE EXPERIENCE AND SCHEDULE RATING PLAN RULES FOR COMPLETE DESCRIPTION OF CHARACTERISTICS AND RULES FOR APPLICATION"]

{"sheet":"OK","index":38,"n_rows":48,"n_cols":8,"rows_kept":48,"cut":false,"hidden":false,"merged":[[13,1,13,6],[0,0,0,7],[1,0,1,7],[2,0,2,7],[3,0,3,7],[4,0,4,7],[5,0,5,7],[6,0,6,7],[7,1,7,6],[8,1,8,6],[34,7,37,7],[39,0,39,1],[42,1,42,6],[43,1,43,6],[14,1,14,6],[15,7,16,7],[18,7,21,7],[22,7,25,7],[26,7,29,7],[30,7,33,7]]}
["OKLAHOMA"]
["AIG PROPRIETARY SCHEDULE RATING PLAN"]
["As of July 2023"]
["SCHEDULE RATING MODIFICATIONS - AUTOMOBILE"]
["RATING INFORMATION FORM"]
["A schedule rating modification may also be applied to the otherwise chargeable premium in accordance with the following table, subject to a maximum credit of -40% or debit of +40%, to reflect such characteristics of the risk as are not reflected in its experience."]
[]
["NAMED INSURED","EFFECTIVE DATE",null,null,null,null,null,"AIG COMPANY AND POLICY NUMBER"]
[]
[]
["INSURED LOCATIONS BY STATE:"]
[]
[]
["RISK ","MODIFICATIONS"]
["CHARACTERISTICS"]
[null,"RANGE","CR","DB","RANGE","CR"," DB","REASONS"]
[null,null,"LIABILITY",null,null,"PHYS. DAM."]
[null,null,"% APPLIED",null,null,"% APPLIED"]
["MANAGEMENT","18% CR",null,null,"15% CR"]
[null,"18% DB",null,null,"15% DB"]
[]
[]
["EMPLOYEES","18% CR",null,null,"15% CR"]
[null,"18% DB",null,null,"15% DB"]
[]
[]
["EQUIPMENT","18% CR",null,null,"15% CR"]
[null,"18% DB",null,null,"15% DB"]
[]
[]
["SAFETY ORGANIZATION","21% CR",null,null,"15% CR"]
[null,"21% DB",null,null,"15% DB"]
[]
[]
["DISPERSION OR ","N/A","N/A","N/A","15% CR"]
["CONCENTRATION OF VALUES",null,null,null,"15% DB"]
["(AUTO PD ONLY)"]
[]
[]
["TOTAL%  CR OR DB:",null,{"$f":"SUM(C19+C23+C27+C31)","v":0},{"$f":"SUM(D19+D23+D27+D31)","v":0},null,{"$f":"SUM(F19+F23+F27+F31+F35)","v":0},{"$f":"SUM(G19+G23+G27+G31+G35)","v":0}]
[]
[]
["UNDERWRITER SIGNATURE","DATE"]
[]
["NOTES"]
[]
["DO NOT USE NEGATIVE NUMBERS WHEN APPLYING A CREDIT"]
["SEE CLM LIABILITY AND PHYSICAL DAMAGE EXPERIENCE AND SCHEDULE RATING PLAN RULES FOR COMPLETE DESCRIPTION OF CHARACTERISTICS AND RULES FOR APPLICATION"]

{"sheet":"OR","index":39,"n_rows":48,"n_cols":7,"rows_kept":48,"cut":false,"hidden":false,"merged":[[5,0,5,6],[0,0,0,6],[1,0,1,6],[2,0,2,6],[3,0,3,6],[4,0,4,6],[18,6,21,6],[6,0,6,6],[7,1,7,5],[13,1,13,5],[14,1,14,5],[15,6,16,6],[16,2,16,3],[16,4,16,5],[17,2,17,5],[8,1,8,5],[43,1,43,5],[44,1,44,5],[45,1,45,5],[22,6,25,6],[26,6,29,6],[30,6,33,6],[34,6,37,6],[39,0,39,1],[42,1,42,5]]}
["OREGON"]
["ISO COUNTRYWIDE SCHEDULE RATING PLAN"]
["As of July 2023"]
["SCHEDULE RATING MODIFICATIONS - AUTOMOBILE"]
["RATING INFORMATION FORM"]
["A schedule rating modification may also be applied to the otherwise chargeable premium in accordance with the following table, subject to a maximum credit of -25% or debit of +25%, to reflect such characteristics of the risk as are not reflected in its experience."]
[]
["NAMED INSURED","EFFECTIVE DATE",null,null,null,null,"AIG COMPANY AND POLICY NUMBER"]
[]
[]
["INSURED LOCATIONS BY STATE:"]
[]
[]
["RISK ","MODIFICATIONS"]
["CHARACTERISTICS"]
[null,"RANGE","CR","DB","CR"," DB","REASONS"]
[null,"%","LIABILITY",null,"PHYS. DAM."]
[null,null,"% APPLIED"]
["MANAGEMENT"," 5% CR"]
[null,"5% DB"]
[]
[]
["EMPLOYEES","5% CR"]
[null,"5% DB"]
[]
[]
["EQUIPMENT","5% CR"]
[null,"10% DB"]
[]
[]
["SAFETY ORGANIZATION","10% CR"]
[null,"5% DB"]
[]
[]
["DISPERSION OR ","10% CR","N/A","N/A"]
["CONCENTRATION OF VALUES","10% DB"]
["(AUTO PD ONLY)"]
[]
[]
["TOTAL%  CR OR DB:",null,{"$f":"SUM(C19+C23+C27+C31)","v":0},{"$f":"SUM(D19+D23+D27+D31)","v":0},{"$f":"SUM(E19+E23+E27+E31+E35)","v":0},{"$f":"SUM(F19+F23+F27+F31+F35)","v":0}]
[]
[]
["UNDERWRITER SIGNATURE","DATE"]
[]
["NOTES"]
[]
["DO NOT USE NEGATIVE NUMBERS WHEN APPLYING A CREDIT"]
["SEE CLM LIABILITY AND PHYSICAL DAMAGE EXPERIENCE AND SCHEDULE RATING PLAN RULES FOR COMPLETE DESCRIPTION OF CHARACTERISTICS AND RULES FOR APPLICATION"]

{"sheet":"PA","index":40,"n_rows":48,"n_cols":8,"rows_kept":48,"cut":false,"hidden":false,"merged":[[13,1,13,6],[0,0,0,7],[1,0,1,7],[2,0,2,7],[3,0,3,7],[4,0,4,7],[5,0,5,7],[6,0,6,7],[7,1,7,6],[8,1,8,6],[34,7,37,7],[39,0,39,1],[42,1,42,6],[43,1,43,6],[14,1,14,6],[15,7,16,7],[18,7,21,7],[22,7,25,7],[26,7,29,7],[30,7,33,7]]}
["PENNSYLVANIA"]
["AIG PROPRIETARY SCHEDULE RATING PLAN"]
["As of July 2023"]
["SCHEDULE RATING MODIFICATIONS - AUTOMOBILE"]
["RATING INFORMATION FORM"]
["A schedule rating modification may also be applied to the otherwise chargeable premium in accordance with the following table, subject to a maximum credit of -40% or debit of +40%, to reflect such characteristics of the risk as are not reflected in its experience."]
[]
["NAMED INSURED","EFFECTIVE DATE",null,null,null,null,null,"AIG COMPANY AND POLICY NUMBER"]
[]
[]
["INSURED LOCATIONS BY STATE:"]
[]
[]
["RISK ","MODIFICATIONS"]
["CHARACTERISTICS"]
[null,"RANGE","CR","DB","RANGE","CR"," DB","REASONS"]
[null,null,"LIABILITY",null,null,"PHYS. DAM."]
[null,null,"% APPLIED",null,null,"% APPLIED"]
["MANAGEMENT","18% CR",null,null,"15% CR"]
[null,"18% DB",null,null,"15% DB"]
[]
[]
["EMPLOYEES","18% CR",null,null,"15% CR"]
[null,"18% DB",null,null,"15% DB"]
[]
[]
["EQUIPMENT","18% CR",null,null,"15% CR"]
[null,"18% DB",null,null,"15% DB"]
[]
[]
["SAFETY ORGANIZATION","21% CR",null,null,"15% CR"]
[null,"21% DB",null,null,"15% DB"]
[]
[]
["DISPERSION OR ","N/A","N/A","N/A","15% CR"]
["CONCENTRATION OF VALUES",null,null,null,"15% DB"]
["(AUTO PD ONLY)"]
[]
[]
["TOTAL%  CR OR DB:",null,{"$f":"SUM(C19+C23+C27+C31)","v":0},{"$f":"SUM(D19+D23+D27+D31)","v":0},null,{"$f":"SUM(F19+F23+F27+F31+F35)","v":0},{"$f":"SUM(G19+G23+G27+G31+G35)","v":0}]
[]
[]
["UNDERWRITER SIGNATURE","DATE"]
[]
["NOTES"]
[]
["DO NOT USE NEGATIVE NUMBERS WHEN APPLYING A CREDIT"]
["SEE CLM LIABILITY AND PHYSICAL DAMAGE EXPERIENCE AND SCHEDULE RATING PLAN RULES FOR COMPLETE DESCRIPTION OF CHARACTERISTICS AND RULES FOR APPLICATION"]

{"sheet":"RI","index":41,"n_rows":48,"n_cols":8,"rows_kept":48,"cut":false,"hidden":false,"merged":[[13,1,13,6],[0,0,0,7],[1,0,1,7],[2,0,2,7],[3,0,3,7],[4,0,4,7],[5,0,5,7],[6,0,6,7],[7,1,7,6],[8,1,8,6],[34,7,37,7],[39,0,39,1],[42,1,42,6],[43,1,43,6],[14,1,14,6],[15,7,16,7],[18,7,21,7],[22,7,25,7],[26,7,29,7],[30,7,33,7]]}
["RHODE ISLAND"]
["AIG PROPRIETARY SCHEDULE RATING PLAN"]
["As of July 2023"]
["SCHEDULE RATING MODIFICATIONS - AUTOMOBILE"]
["RATING INFORMATION FORM"]
["A schedule rating modification may also be applied to the otherwise chargeable premium in accordance with the following table, subject to a maximum credit of -40% or debit of +40%, to reflect such characteristics of the risk as are not reflected in its experience."]
[]
["NAMED INSURED","EFFECTIVE DATE",null,null,null,null,null,"AIG COMPANY AND POLICY NUMBER"]
[]
[]
["INSURED LOCATIONS BY STATE:"]
[]
[]
["RISK ","MODIFICATIONS"]
["CHARACTERISTICS"]
[null,"RANGE","CR","DB","RANGE","CR"," DB","REASONS"]
[null,null,"LIABILITY",null,null,"PHYS. DAM."]
[null,null,"% APPLIED",null,null,"% APPLIED"]
["MANAGEMENT","18% CR",null,null,"15% CR"]
[null,"18% DB",null,null,"15% DB"]
[]
[]
["EMPLOYEES","18% CR",null,null,"15% CR"]
[null,"18% DB",null,null,"15% DB"]
[]
[]
["EQUIPMENT","18% CR",null,null,"15% CR"]
[null,"18% DB",null,null,"15% DB"]
[]
[]
["SAFETY ORGANIZATION","21% CR",null,null,"15% CR"]
[null,"21% DB",null,null,"15% DB"]
[]
[]
["DISPERSION OR ","N/A","N/A","N/A","15% CR"]
["CONCENTRATION OF VALUES",null,null,null,"15% DB"]
["(AUTO PD ONLY)"]
[]
[]
["TOTAL%  CR OR DB:",null,{"$f":"SUM(C19+C23+C27+C31)","v":0},{"$f":"SUM(D19+D23+D27+D31)","v":0},null,{"$f":"SUM(F19+F23+F27+F31+F35)","v":0},{"$f":"SUM(G19+G23+G27+G31+G35)","v":0}]
[]
[]
["UNDERWRITER SIGNATURE","DATE"]
[]
["NOTES"]
[]
["DO NOT USE NEGATIVE NUMBERS WHEN APPLYING A CREDIT"]
["SEE CLM LIABILITY AND PHYSICAL DAMAGE EXPERIENCE AND SCHEDULE RATING PLAN RULES FOR COMPLETE DESCRIPTION OF CHARACTERISTICS AND RULES FOR APPLICATION"]

{"sheet":"SC","index":42,"n_rows":48,"n_cols":8,"rows_kept":48,"cut":false,"hidden":false,"merged":[[42,1,42,6],[43,1,43,6],[6,2,6,5],[34,7,37,7],[39,0,39,1],[0,0,0,7],[18,7,21,7],[22,7,25,7],[26,7,29,7],[30,7,33,7],[13,1,13,6],[14,1,14,6],[15,7,16,7],[7,1,7,6],[1,0,1,7],[2,0,2,7],[3,0,3,7],[4,0,4,7],[5,0,5,7],[8,1,8,6]]}
["SOUTH CAROLINA"]
["AIG PROPRIETARY SCHEDULE RATING PLAN"]
["As of July 2023"]
["SCHEDULE RATING MODIFICATIONS - AUTOMOBILE"]
["RATING INFORMATION FORM"]
["A schedule rating modification may also be applied to the otherwise chargeable premium in accordance with the following table, subject to a maximum credit of -25% or debit of +40%, to reflect such characteristics of the risk as are not reflected in its experience."]
[]
["NAMED INSURED","EFFECTIVE DATE",null,null,null,null,null,"AIG COMPANY AND POLICY NUMBER"]
[]
[]
["INSURED LOCATIONS BY STATE:"]
[]
[]
["RISK ","MODIFICATIONS"]
["CHARACTERISTICS"]
[null,"RANGE","CR","DB","RANGE","CR"," DB","REASONS"]
[null,null,"LIABILITY",null,null,"PHYS. DAM."]
[null,null,"% APPLIED",null,null,"% APPLIED"]
["MANAGEMENT","18% CR",null,null,"15% CR"]
[null,"18% DB",null,null,"15% DB"]
[]
[]
["EMPLOYEES","18% CR",null,null,"15% CR"]
[null,"18% DB",null,null,"15% DB"]
[]
[]
["EQUIPMENT","18% CR",null,null,"15% CR"]
[null,"18% DB",null,null,"15% DB"]
[]
[]
["SAFETY ORGANIZATION","21% CR",null,null,"15% CR"]
[null,"21% DB",null,null,"15% DB"]
[]
[]
["DISPERSION OR ","N/A","N/A","N/A","15% CR"]
["CONCENTRATION OF VALUES",null,null,null,"15% DB"]
["(AUTO PD ONLY)"]
[]
[]
["TOTAL%  CR OR DB:",null,{"$f":"SUM(C19+C23+C27+C31)","v":0},{"$f":"SUM(D19+D23+D27+D31)","v":0},null,{"$f":"SUM(F19+F23+F27+F31+F35)","v":0},{"$f":"SUM(G19+G23+G27+G31+G35)","v":0}]
[]
[]
["UNDERWRITER SIGNATURE","DATE"]
[]
["NOTES"]
[]
["DO NOT USE NEGATIVE NUMBERS WHEN APPLYING A CREDIT"]
["SEE CLM LIABILITY AND PHYSICAL DAMAGE EXPERIENCE AND SCHEDULE RATING PLAN RULES FOR COMPLETE DESCRIPTION OF CHARACTERISTICS AND RULES FOR APPLICATION"]

{"sheet":"SD","index":43,"n_rows":48,"n_cols":7,"rows_kept":48,"cut":false,"hidden":false,"merged":[[5,0,5,6],[0,0,0,6],[1,0,1,6],[2,0,2,6],[3,0,3,6],[4,0,4,6],[18,6,21,6],[6,0,6,6],[7,1,7,5],[13,1,13,5],[14,1,14,5],[15,6,16,6],[16,2,16,3],[16,4,16,5],[17,2,17,5],[8,1,8,5],[43,1,43,5],[44,1,44,5],[45,1,45,5],[22,6,25,6],[26,6,29,6],[30,6,33,6],[34,6,37,6],[39,0,39,1],[42,1,42,5]]}
["SOUTH DAKOTA"]
["ISO COUNTRYWIDE SCHEDULE RATING PLAN"]
["As of July 2023"]
["SCHEDULE RATING MODIFICATIONS - AUTOMOBILE"]
["RATING INFORMATION FORM"]
["A schedule rating modification may also be applied to the otherwise chargeable premium in accordance with the following table, subject to a maximum credit of -25% or debit of +25%, to reflect such characteristics of the risk as are not reflected in its experience."]
[]
["NAMED INSURED","EFFECTIVE DATE",null,null,null,null,"AIG COMPANY AND POLICY NUMBER"]
[]
[]
["INSURED LOCATIONS BY STATE:"]
[]
[]
["RISK ","MODIFICATIONS"]
["CHARACTERISTICS"]
[null,"RANGE","CR","DB","CR"," DB","REASONS"]
[null,"%","LIABILITY",null,"PHYS. DAM."]
[null,null,"% APPLIED"]
["MANAGEMENT"," 5% CR"]
[null,"5% DB"]
[]
[]
["EMPLOYEES","5% CR"]
[null,"5% DB"]
[]
[]
["EQUIPMENT","5% CR"]
[null,"10% DB"]
[]
[]
["SAFETY ORGANIZATION","10% CR"]
[null,"5% DB"]
[]
[]
["DISPERSION OR ","10% CR","N/A","N/A"]
["CONCENTRATION OF VALUES","10% DB"]
["(AUTO PD ONLY)"]
[]
[]
["TOTAL%  CR OR DB:",null,{"$f":"SUM(C19+C23+C27+C31)","v":0},{"$f":"SUM(D19+D23+D27+D31)","v":0},{"$f":"SUM(E19+E23+E27+E31+E35)","v":0},{"$f":"SUM(F19+F23+F27+F31+F35)","v":0}]
[]
[]
["UNDERWRITER SIGNATURE","DATE"]
[]
["NOTES"]
[]
["DO NOT USE NEGATIVE NUMBERS WHEN APPLYING A CREDIT"]
["SEE CLM LIABILITY AND PHYSICAL DAMAGE EXPERIENCE AND SCHEDULE RATING PLAN RULES FOR COMPLETE DESCRIPTION OF CHARACTERISTICS AND RULES FOR APPLICATION"]

{"sheet":"TN","index":44,"n_rows":48,"n_cols":8,"rows_kept":48,"cut":false,"hidden":false,"merged":[[13,1,13,6],[0,0,0,6],[1,0,1,7],[2,0,2,7],[3,0,3,7],[4,0,4,7],[5,0,5,7],[6,0,6,7],[7,1,7,6],[8,1,8,6],[45,1,45,6],[14,1,14,6],[15,7,16,7],[18,7,21,7],[22,7,25,7],[26,7,29,7],[30,7,33,7],[34,7,37,7],[39,0,39,1],[42,1,42,6],[43,1,43,6],[44,1,44,6]]}
["TENNESSEE"]
["AIG PROPRIETARY SCHEDULE RATING PLAN"]
["As of JULY 2023"]
["SCHEDULE RATING MODIFICATIONS - AUTOMOBILE"]
["RATING INFORMATION FORM"]
["A schedule rating modification may also be applied to the otherwise chargeable premium in accordance with the following table, subject to a maximum credit of -50% or debit of +50%, to reflect such characteristics of the risk as are not reflected in its experience."]
[]
["NAMED INSURED","EFFECTIVE DATE",null,null,null,null,null,"AIG COMPANY AND POLICY NUMBER"]
[]
[]
["INSURED LOCATIONS BY STATE:"]
[]
[]
["RISK ","MODIFICATIONS"]
["CHARACTERISTICS"]
[null,"RANGE","CR","DB","RANGE","CR"," DB","REASONS"]
[null,null,"LIABILITY",null,null,"PHYS. DAM."]
[null,null,"% APPLIED",null,null,"% APPLIED"]
["MANAGEMENT","18% CR",null,null,"15% CR"]
[null,"18% DB",null,null,"15% DB"]
[]
[]
["EMPLOYEES","18% CR",null,null,"15% CR"]
[null,"18% DB",null,null,"15% DB"]
[]
[]
["EQUIPMENT","18% CR",null,null,"15% CR"]
[null,"18% DB",null,null,"15% DB"]
[]
[]
["SAFETY ORGANIZATION","21% CR",null,null,"15% CR"]
[null,"21% DB",null,null,"15% DB"]
[]
[]
["DISPERSION OR ","N/A","N/A","N/A","15% CR"]
["CONCENTRATION OF VALUES",null,null,null,"15% DB"]
["(AUTO PD ONLY)"]
[]
[]
["TOTAL%  CR OR DB:",null,{"$f":"SUM(C19+C23+C27+C31)","v":0},{"$f":"SUM(D19+D23+D27+D31)","v":0},null,{"$f":"SUM(F19+F23+F27+F31+F35)","v":0},{"$f":"SUM(G19+G23+G27+G31+G35)","v":0}]
[]
[]
["UNDERWRITER SIGNATURE","DATE"]
[]
["NOTES"]
[]
["DO NOT USE NEGATIVE NUMBERS WHEN APPLYING A CREDIT"]
["SEE CLM LIABILITY AND PHYSICAL DAMAGE EXPERIENCE AND SCHEDULE RATING PLAN RULES FOR COMPLETE DESCRIPTION OF CHARACTERISTICS AND RULES FOR APPLICATION"]

{"sheet":"TX","index":45,"n_rows":48,"n_cols":8,"rows_kept":48,"cut":false,"hidden":false,"merged":[[13,1,13,6],[0,0,0,7],[1,0,1,7],[2,0,2,7],[3,0,3,7],[4,0,4,7],[5,0,5,7],[6,0,6,7],[7,1,7,6],[8,1,8,6],[34,7,37,7],[39,0,39,1],[42,1,42,6],[43,1,43,6],[14,1,14,6],[15,7,16,7],[18,7,21,7],[22,7,25,7],[26,7,29,7],[30,7,33,7]]}
["TEXAS "]
["AIG PROPRIETARY SCHEDULE RATING PLAN"]
["As of July 2023"]
["SCHEDULE RATING MODIFICATIONS - AUTOMOBILE"]
["RATING INFORMATION FORM"]
["A schedule rating modification may also be applied to the otherwise chargeable premium in accordance with the following table, subject to a maximum credit of -40% or debit of +40%, to reflect such characteristics of the risk as are not reflected in its experience."]
[]
["NAMED INSURED","EFFECTIVE DATE",null,null,null,null,null,"AIG COMPANY AND POLICY NUMBER"]
[]
[]
["INSURED LOCATIONS BY STATE:"]
[]
[]
["RISK ","MODIFICATIONS"]
["CHARACTERISTICS"]
[null,"RANGE","CR","DB","RANGE","CR"," DB","REASONS"]
[null,null,"LIABILITY",null,null,"PHYS. DAM."]
[null,null,"% APPLIED",null,null,"% APPLIED"]
["MANAGEMENT","18% CR",null,null,"15% CR"]
[null,"18% DB",null,null,"15% DB"]
[]
[]
["EMPLOYEES","18% CR",null,null,"15% CR"]
[null,"18% DB",null,null,"15% DB"]
[]
[]
["EQUIPMENT","18% CR",null,null,"15% CR"]
[null,"18% DB",null,null,"15% DB"]
[]
[]
["SAFETY ORGANIZATION","21% CR",null,null,"15% CR"]
[null,"21% DB",null,null,"15% DB"]
[]
[]
["DISPERSION OR ","N/A","N/A","N/A","15% CR"]
["CONCENTRATION OF VALUES",null,null,null,"15% DB"]
["(AUTO PD ONLY)"]
[]
[]
["TOTAL%  CR OR DB:",null,{"$f":"SUM(C19+C23+C27+C31)","v":0},{"$f":"SUM(D19+D23+D27+D31)","v":0},null,{"$f":"SUM(F19+F23+F27+F31+F35)","v":0},{"$f":"SUM(G19+G23+G27+G31+G35)","v":0}]
[]
[]
["UNDERWRITER SIGNATURE","DATE"]
[]
["NOTES"]
[]
["DO NOT USE NEGATIVE NUMBERS WHEN APPLYING A CREDIT"]
["SEE CLM LIABILITY AND PHYSICAL DAMAGE EXPERIENCE AND SCHEDULE RATING PLAN RULES FOR COMPLETE DESCRIPTION OF CHARACTERISTICS AND RULES FOR APPLICATION"]

{"sheet":"UT","index":46,"n_rows":48,"n_cols":7,"rows_kept":48,"cut":false,"hidden":false,"merged":[[5,0,5,6],[0,0,0,6],[1,0,1,6],[2,0,2,6],[3,0,3,6],[4,0,4,6],[18,6,21,6],[6,0,6,6],[7,1,7,5],[13,1,13,5],[14,1,14,5],[15,6,16,6],[16,2,16,3],[16,4,16,5],[17,2,17,5],[8,1,8,5],[43,1,43,5],[44,1,44,5],[45,1,45,5],[22,6,25,6],[26,6,29,6],[30,6,33,6],[34,6,37,6],[39,0,39,1],[42,1,42,5]]}
["UTAH"]
["ISO COUNTRYWIDE SCHEDULE RATING PLAN"]
["As of July 2023"]
["SCHEDULE RATING MODIFICATIONS - AUTOMOBILE"]
["RATING INFORMATION FORM"]
["A schedule rating modification may also be applied to the otherwise chargeable premium in accordance with the following table, subject to a maximum credit of -25% or debit of +25%, to reflect such characteristics of the risk as are not reflected in its experience."]
[]
["NAMED INSURED","EFFECTIVE DATE",null,null,null,null,"AIG COMPANY AND POLICY NUMBER"]
[]
[]
["INSURED LOCATIONS BY STATE:"]
[]
[]
["RISK ","MODIFICATIONS"]
["CHARACTERISTICS"]
[null,"RANGE","CR","DB","CR"," DB","REASONS"]
[null,"%","LIABILITY",null,"PHYS. DAM."]
[null,null,"% APPLIED"]
["MANAGEMENT"," 5% CR"]
[null,"5% DB"]
[]
[]
["EMPLOYEES","5% CR"]
[null,"5% DB"]
[]
[]
["EQUIPMENT","5% CR"]
[null,"10% DB"]
[]
[]
["SAFETY ORGANIZATION","10% CR"]
[null,"5% DB"]
[]
[]
["DISPERSION OR ","10% CR","N/A","N/A"]
["CONCENTRATION OF VALUES","10% DB"]
["(AUTO PD ONLY)"]
[]
[]
["TOTAL%  CR OR DB:",null,{"$f":"SUM(C19+C23+C27+C31)","v":0},{"$f":"SUM(D19+D23+D27+D31)","v":0},{"$f":"SUM(E19+E23+E27+E31+E35)","v":0},{"$f":"SUM(F19+F23+F27+F31+F35)","v":0}]
[]
[]
["UNDERWRITER SIGNATURE","DATE"]
[]
["NOTES"]
[]
["DO NOT USE NEGATIVE NUMBERS WHEN APPLYING A CREDIT"]
["SEE CLM LIABILITY AND PHYSICAL DAMAGE EXPERIENCE AND SCHEDULE RATING PLAN RULES FOR COMPLETE DESCRIPTION OF CHARACTERISTICS AND RULES FOR APPLICATION"]

{"sheet":"VT","index":47,"n_rows":48,"n_cols":8,"rows_kept":48,"cut":false,"hidden":false,"merged":[[13,1,13,6],[0,0,0,6],[1,0,1,7],[2,0,2,7],[3,0,3,7],[4,0,4,7],[5,0,5,7],[6,0,6,7],[7,1,7,6],[8,1,8,6],[45,1,45,6],[14,1,14,6],[15,7,16,7],[18,7,21,7],[22,7,25,7],[26,7,29,7],[30,7,33,7],[34,7,37,7],[39,0,39,1],[42,1,42,6],[43,1,43,6],[44,1,44,6]]}
["VERMONT"]
["AIG PROPRIETARY SCHEDULE RATING PLAN"]
["As of July 2023"]
["SCHEDULE RATING MODIFICATIONS - AUTOMOBILE"]
["RATING INFORMATION FORM"]
["A schedule rating modification may also be applied to the otherwise chargeable premium in accordance with the following table, subject to a maximum credit of -50% or debit of +50%, to reflect such characteristics of the risk as are not reflected in its experience."]
[]
["NAMED INSURED","EFFECTIVE DATE",null,null,null,null,null,"AIG COMPANY AND POLICY NUMBER"]
[]
[]
["INSURED LOCATIONS BY STATE:"]
[]
[]
["RISK ","MODIFICATIONS"]
["CHARACTERISTICS"]
[null,"RANGE","CR","DB","RANGE","CR"," DB","REASONS"]
[null,null,"LIABILITY",null,null,"PHYS. DAM."]
[null,null,"% APPLIED",null,null,"% APPLIED"]
["MANAGEMENT","18% CR",null,null,"15% CR"]
[null,"18% DB",null,null,"15% DB"]
[]
[]
["EMPLOYEES","18% CR",null,null,"15% CR"]
[null,"18% DB",null,null,"15% DB"]
[]
[]
["EQUIPMENT","18% CR",null,null,"15% CR"]
[null,"18% DB",null,null,"15% DB"]
[]
[]
["SAFETY ORGANIZATION","21% CR",null,null,"15% CR"]
[null,"21% DB",null,null,"15% DB"]
[]
[]
["DISPERSION OR ","N/A","N/A","N/A","15% CR"]
["CONCENTRATION OF VALUES",null,null,null,"15% DB"]
["(AUTO PD ONLY)"]
[]
[]
["TOTAL%  CR OR DB:",null,{"$f":"SUM(C19+C23+C27+C31)","v":0},{"$f":"SUM(D19+D23+D27+D31)","v":0},null,{"$f":"SUM(F19+F23+F27+F31+F35)","v":0},{"$f":"SUM(G19+G23+G27+G31+G35)","v":0}]
[]
[]
["UNDERWRITER SIGNATURE","DATE"]
[]
["NOTES"]
[]
["DO NOT USE NEGATIVE NUMBERS WHEN APPLYING A CREDIT"]
["SEE CLM LIABILITY AND PHYSICAL DAMAGE EXPERIENCE AND SCHEDULE RATING PLAN RULES FOR COMPLETE DESCRIPTION OF CHARACTERISTICS AND RULES FOR APPLICATION"]

{"sheet":"VA","index":48,"n_rows":48,"n_cols":8,"rows_kept":48,"cut":false,"hidden":false,"merged":[[13,1,13,6],[0,0,0,6],[1,0,1,7],[2,0,2,7],[3,0,3,7],[4,0,4,7],[5,0,5,7],[6,0,6,7],[7,1,7,6],[8,1,8,6],[45,1,45,6],[14,1,14,6],[15,7,16,7],[18,7,21,7],[22,7,25,7],[26,7,29,7],[30,7,33,7],[34,7,37,7],[39,0,39,1],[42,1,42,6],[43,1,43,6],[44,1,44,6]]}
["VIRGINIA"]
["AIG PROPRIETARY SCHEDULE RATING PLAN"]
["As of JULY 2023"]
["SCHEDULE RATING MODIFICATIONS - AUTOMOBILE"]
["RATING INFORMATION FORM"]
["A schedule rating modification may also be applied to the otherwise chargeable premium in accordance with the following table, subject to a maximum credit of -50% or debit of +50%, to reflect such characteristics of the risk as are not reflected in its experience."]
[]
["NAMED INSURED","EFFECTIVE DATE",null,null,null,null,null,"AIG COMPANY AND POLICY NUMBER"]
[]
[]
["INSURED LOCATIONS BY STATE:"]
[]
[]
["RISK ","MODIFICATIONS"]
["CHARACTERISTICS"]
[null,"RANGE","CR","DB","RANGE","CR"," DB","REASONS"]
[null,null,"LIABILITY",null,null,"PHYS. DAM."]
[null,null,"% APPLIED",null,null,"% APPLIED"]
["MANAGEMENT","18% CR",null,null,"15% CR"]
[null,"18% DB",null,null,"15% DB"]
[]
[]
["EMPLOYEES","18% CR",null,null,"15% CR"]
[null,"18% DB",null,null,"15% DB"]
[]
[]
["EQUIPMENT","18% CR",null,null,"15% CR"]
[null,"18% DB",null,null,"15% DB"]
[]
[]
["SAFETY ORGANIZATION","21% CR",null,null,"15% CR"]
[null,"21% DB",null,null,"15% DB"]
[]
[]
["DISPERSION OR ","N/A","N/A","N/A","15% CR"]
["CONCENTRATION OF VALUES",null,null,null,"15% DB"]
["(AUTO PD ONLY)"]
[]
[]
["TOTAL%  CR OR DB:",null,{"$f":"SUM(C19+C23+C27+C31)","v":0},{"$f":"SUM(D19+D23+D27+D31)","v":0},null,{"$f":"SUM(F19+F23+F27+F31+F35)","v":0},{"$f":"SUM(G19+G23+G27+G31+G35)","v":0}]
[]
[]
["UNDERWRITER SIGNATURE","DATE"]
[]
["NOTES"]
[]
["DO NOT USE NEGATIVE NUMBERS WHEN APPLYING A CREDIT"]
["SEE CLM LIABILITY AND PHYSICAL DAMAGE EXPERIENCE AND SCHEDULE RATING PLAN RULES FOR COMPLETE DESCRIPTION OF CHARACTERISTICS AND RULES FOR APPLICATION"]

{"sheet":"WA","index":49,"n_rows":48,"n_cols":7,"rows_kept":48,"cut":false,"hidden":false,"merged":[[5,0,5,6],[0,0,0,6],[1,0,1,6],[2,0,2,6],[3,0,3,6],[4,0,4,6],[18,6,21,6],[6,0,6,6],[7,1,7,5],[13,1,13,5],[14,1,14,5],[15,6,16,6],[16,2,16,3],[16,4,16,5],[17,2,17,5],[8,1,8,5],[43,1,43,5],[44,1,44,5],[45,1,45,5],[22,6,25,6],[26,6,29,6],[30,6,33,6],[34,6,37,6],[39,0,39,1],[42,1,42,5]]}
["WASHINGTON"]
["ISO COUNTRYWIDE SCHEDULE RATING PLAN"]
["As of July 2023"]
["SCHEDULE RATING MODIFICATIONS - AUTOMOBILE"]
["RATING INFORMATION FORM"]
["A schedule rating modification may also be applied to the otherwise chargeable premium in accordance with the following table, subject to a maximum credit of -25% or debit of +25%, to reflect such characteristics of the risk as are not reflected in its experience."]
[]
["NAMED INSURED","EFFECTIVE DATE",null,null,null,null,"AIG COMPANY AND POLICY NUMBER"]
[]
[]
["INSURED LOCATIONS BY STATE:"]
[]
[]
["RISK ","MODIFICATIONS"]
["CHARACTERISTICS"]
[null,"RANGE","CR","DB","CR"," DB","REASONS"]
[null,"%","LIABILITY",null,"PHYS. DAM."]
[null,null,"% APPLIED"]
["MANAGEMENT"," 5% CR"]
[null,"5% DB"]
[]
[]
["EMPLOYEES","5% CR"]
[null,"5% DB"]
[]
[]
["EQUIPMENT","5% CR"]
[null,"10% DB"]
[]
[]
["SAFETY ORGANIZATION","10% CR"]
[null,"5% DB"]
[]
[]
["DISPERSION OR ","10% CR","N/A","N/A"]
["CONCENTRATION OF VALUES","10% DB"]
["(AUTO PD ONLY)"]
[]
[]
["TOTAL%  CR OR DB:",null,{"$f":"SUM(C19+C23+C27+C31)","v":0},{"$f":"SUM(D19+D23+D27+D31)","v":0},{"$f":"SUM(E19+E23+E27+E31+E35)","v":0},{"$f":"SUM(F19+F23+F27+F31+F35)","v":0}]
[]
[]
["UNDERWRITER SIGNATURE","DATE"]
[]
["NOTES"]
[]
["DO NOT USE NEGATIVE NUMBERS WHEN APPLYING A CREDIT"]
["SEE CLM LIABILITY AND PHYSICAL DAMAGE EXPERIENCE AND SCHEDULE RATING PLAN RULES FOR COMPLETE DESCRIPTION OF CHARACTERISTICS AND RULES FOR APPLICATION"]

{"sheet":"WV","index":50,"n_rows":48,"n_cols":8,"rows_kept":48,"cut":false,"hidden":false,"merged":[[13,1,13,6],[0,0,0,7],[1,0,1,7],[2,0,2,7],[3,0,3,7],[4,0,4,7],[5,0,5,7],[6,0,6,7],[7,1,7,6],[8,1,8,6],[34,7,37,7],[39,0,39,1],[42,1,42,6],[43,1,43,6],[14,1,14,6],[15,7,16,7],[18,7,21,7],[22,7,25,7],[26,7,29,7],[30,7,33,7]]}
["WEST VIRGINIA"]
["AIG PROPRIETARY SCHEDULE RATING PLAN"]
["As of July 2023"]
["SCHEDULE RATING MODIFICATIONS - AUTOMOBILE"]
["RATING INFORMATION FORM"]
["A schedule rating modification may also be applied to the otherwise chargeable premium in accordance with the following table, subject to a maximum credit of -40% or debit of +40%, to reflect such characteristics of the risk as are not reflected in its experience."]
[]
["NAMED INSURED","EFFECTIVE DATE",null,null,null,null,null,"AIG COMPANY AND POLICY NUMBER"]
[]
[]
["INSURED LOCATIONS BY STATE:"]
[]
[]
["RISK ","MODIFICATIONS"]
["CHARACTERISTICS"]
[null,"RANGE","CR","DB","RANGE","CR"," DB","REASONS"]
[null,null,"LIABILITY",null,null,"PHYS. DAM."]
[null,null,"% APPLIED",null,null,"% APPLIED"]
["MANAGEMENT","18% CR",null,null,"15% CR"]
[null,"18% DB",null,null,"15% DB"]
[]
[]
["EMPLOYEES","18% CR",null,null,"15% CR"]
[null,"18% DB",null,null,"15% DB"]
[]
[]
["EQUIPMENT","18% CR",null,null,"15% CR"]
[null,"18% DB",null,null,"15% DB"]
[]
[]
["SAFETY ORGANIZATION","21% CR",null,null,"15% CR"]
[null,"21% DB",null,null,"15% DB"]
[]
[]
["DISPERSION OR ","N/A","N/A","N/A","15% CR"]
["CONCENTRATION OF VALUES",null,null,null,"15% DB"]
["(AUTO PD ONLY)"]
[]
[]
["TOTAL%  CR OR DB:",null,{"$f":"SUM(C19+C23+C27+C31)","v":0},{"$f":"SUM(D19+D23+D27+D31)","v":0},null,{"$f":"SUM(F19+F23+F27+F31+F35)","v":0},{"$f":"SUM(G19+G23+G27+G31+G35)","v":0}]
[]
[]
["UNDERWRITER SIGNATURE","DATE"]
[]
["NOTES"]
[]
["DO NOT USE NEGATIVE NUMBERS WHEN APPLYING A CREDIT"]
["SEE CLM LIABILITY AND PHYSICAL DAMAGE EXPERIENCE AND SCHEDULE RATING PLAN RULES FOR COMPLETE DESCRIPTION OF CHARACTERISTICS AND RULES FOR APPLICATION"]

{"sheet":"WI","index":51,"n_rows":48,"n_cols":8,"rows_kept":48,"cut":false,"hidden":false,"merged":[[13,1,13,6],[0,0,0,6],[1,0,1,7],[2,0,2,7],[3,0,3,7],[4,0,4,7],[5,0,5,7],[6,0,6,7],[7,1,7,6],[8,1,8,6],[45,1,45,6],[14,1,14,6],[15,7,16,7],[18,7,21,7],[22,7,25,7],[26,7,29,7],[30,7,33,7],[34,7,37,7],[39,0,39,1],[42,1,42,6],[43,1,43,6],[44,1,44,6]]}
["WISCONSIN"]
["AIG PROPRIETARY SCHEDULE RATING PLAN"]
["As of July 2023"]
["SCHEDULE RATING MODIFICATIONS - AUTOMOBILE"]
["RATING INFORMATION FORM"]
["A schedule rating modification may also be applied to the otherwise chargeable premium in accordance with the following table, subject to a maximum credit of -50% or debit of +50%, to reflect such characteristics of the risk as are not reflected in its experience."]
[]
["NAMED INSURED","EFFECTIVE DATE",null,null,null,null,null,"AIG COMPANY AND POLICY NUMBER"]
[]
[]
["INSURED LOCATIONS BY STATE:"]
[]
[]
["RISK ","MODIFICATIONS"]
["CHARACTERISTICS"]
[null,"RANGE","CR","DB","RANGE","CR"," DB","REASONS"]
[null,null,"LIABILITY",null,null,"PHYS. DAM."]
[null,null,"% APPLIED",null,null,"% APPLIED"]
["MANAGEMENT","18% CR",null,null,"15% CR"]
[null,"18% DB",null,null,"15% DB"]
[]
[]
["EMPLOYEES","18% CR",null,null,"15% CR"]
[null,"18% DB",null,null,"15% DB"]
[]
[]
["EQUIPMENT","18% CR",null,null,"15% CR"]
[null,"18% DB",null,null,"15% DB"]
[]
[]
["SAFETY ORGANIZATION","21% CR",null,null,"15% CR"]
[null,"21% DB",null,null,"15% DB"]
[]
[]
["DISPERSION OR ","N/A","N/A","N/A","15% CR"]
["CONCENTRATION OF VALUES",null,null,null,"15% DB"]
["(AUTO PD ONLY)"]
[]
[]
["TOTAL%  CR OR DB:",null,{"$f":"SUM(C19+C23+C27+C31)","v":0},{"$f":"SUM(D19+D23+D27+D31)","v":0},null,{"$f":"SUM(F19+F23+F27+F31+F35)","v":0},{"$f":"SUM(G19+G23+G27+G31+G35)","v":0}]
[]
[]
["UNDERWRITER SIGNATURE","DATE"]
[]
["NOTES"]
[]
["DO NOT USE NEGATIVE NUMBERS WHEN APPLYING A CREDIT"]
["SEE CLM LIABILITY AND PHYSICAL DAMAGE EXPERIENCE AND SCHEDULE RATING PLAN RULES FOR COMPLETE DESCRIPTION OF CHARACTERISTICS AND RULES FOR APPLICATION"]

{"sheet":"WY","index":52,"n_rows":48,"n_cols":8,"rows_kept":48,"cut":false,"hidden":false,"merged":[[13,1,13,6],[0,0,0,6],[1,0,1,7],[2,0,2,7],[3,0,3,7],[4,0,4,7],[5,0,5,7],[6,0,6,7],[7,1,7,6],[8,1,8,6],[45,1,45,6],[14,1,14,6],[15,7,16,7],[18,7,21,7],[22,7,25,7],[26,7,29,7],[30,7,33,7],[34,7,37,7],[39,0,39,1],[42,1,42,6],[43,1,43,6],[44,1,44,6]]}
["WYOMING"]
["AIG PROPRIETARY SCHEDULE RATING PLAN"]
["As of July 2023"]
["SCHEDULE RATING MODIFICATIONS - AUTOMOBILE"]
["RATING INFORMATION FORM"]
["A schedule rating modification may also be applied to the otherwise chargeable premium in accordance with the following table, subject to a maximum credit of -50% or debit of +50%, to reflect such characteristics of the risk as are not reflected in its experience."]
[]
["NAMED INSURED","EFFECTIVE DATE",null,null,null,null,null,"AIG COMPANY AND POLICY NUMBER"]
[]
[]
["INSURED LOCATIONS BY STATE:"]
[]
[]
["RISK ","MODIFICATIONS"]
["CHARACTERISTICS"]
[null,"RANGE","CR","DB","RANGE","CR"," DB","REASONS"]
[null,null,"LIABILITY",null,null,"PHYS. DAM."]
[null,null,"% APPLIED",null,null,"% APPLIED"]
["MANAGEMENT","18% CR",null,null,"15% CR"]
[null,"18% DB",null,null,"15% DB"]
[]
[]
["EMPLOYEES","18% CR",null,null,"15% CR"]
[null,"18% DB",null,null,"15% DB"]
[]
[]
["EQUIPMENT","18% CR",null,null,"15% CR"]
[null,"18% DB",null,null,"15% DB"]
[]
[]
["SAFETY ORGANIZATION","21% CR",null,null,"15% CR"]
[null,"21% DB",null,null,"15% DB"]
[]
[]
["DISPERSION OR ","N/A","N/A","N/A","15% CR"]
["CONCENTRATION OF VALUES",null,null,null,"15% DB"]
["(AUTO PD ONLY)"]
[]
[]
["TOTAL%  CR OR DB:",null,{"$f":"SUM(C19+C23+C27+C31)","v":0},{"$f":"SUM(D19+D23+D27+D31)","v":0},null,{"$f":"SUM(F19+F23+F27+F31+F35)","v":0},{"$f":"SUM(G19+G23+G27+G31+G35)","v":0}]
[]
[]
["UNDERWRITER SIGNATURE","DATE"]
[]
["NOTES"]
[]
["DO NOT USE NEGATIVE NUMBERS WHEN APPLYING A CREDIT"]
["SEE CLM LIABILITY AND PHYSICAL DAMAGE EXPERIENCE AND SCHEDULE RATING PLAN RULES FOR COMPLETE DESCRIPTION OF CHARACTERISTICS AND RULES FOR APPLICATION"]